{"text_format":"1","workbook":"xlsx","n_sheets":14,"sheets":["Cover","Info","Results","E01","E02","E03","E04","E05","E06","E07","E08","E09","E10","About"],"not_rendered":{"charts":12,"images":40,"macros":1,"external_links":0,"defined_names":15,"comments":0,"pivot_tables":0},"unopened":[],"bounds":{"document_bytes":16777216,"sheet_cells":100000,"rows_first":2000,"rows_last":500,"rows_between":2000,"halvings":0,"cell_chars":16384,"cell_head_chars":4096},"cells_cut":0,"cells_raw":0,"read":"whole","date_system":"1900"}

{"sheet":"Cover","index":0,"n_rows":0,"n_cols":0,"rows_kept":0,"cut":false,"hidden":false,"merged":[]}

{"sheet":"Info","index":1,"n_rows":39,"n_cols":4,"rows_kept":39,"cut":false,"hidden":false,"merged":[[38,1,38,3],[39,1,39,3],[2,1,2,2],[3,1,3,2],[4,1,4,2],[5,1,5,2],[6,1,6,2],[37,1,37,3],[31,1,31,2],[32,1,32,2],[33,1,33,2],[34,1,34,2],[35,1,35,2]]}
[]
[]
[null,"评估对象  回复",null,"回复"]
[null,"城市名称"]
[null,"城市类型 （直辖市、大城市等）  "]
[null,"国家"]
[null,"评估日期"]
[]
[null,"城市概况 (必填)","回复","资料来源日期"]
[null,"最高权力级别 (如市长等) 的头衔："]
[null,"城市总人口："]
[null,"城市面积（平方公里）："]
[null,"人口密度（人/平方公里）："]
[null,"青年（15-24周岁）人口百分比（%）："]
[null,"老年（65周岁以上）人口百分比（%）："]
[null,"性别 (女户主家庭)："]
[null,"识字率 (识字人口百分比)："]
[null,"贫穷率 (非贫困人口百分比)："]
[null,"平均家庭收入（人民币）： "]
[null,"外来人口比率（%）："]
[null,"已知的最可能 (极有可能) 灾害风险："]
[null,"最严峻的（已知）灾害："]
[]
[null,"城市概况 (选填)","回复","资料来源日期"]
[null,"住户总数："]
[null,"每户人口："]
[null,"生活支出（人民币）："]
[null,"人均国内生产总值（人民币）："]
[null,"基尼系数："]
[null,"城市人均产值（人民币）："]
[]
[null,"减灾小组",null,"回复"]
[null,"进行评估的人员的姓名"]
[null,"组织 "]
[null,"联系信息"]
[null,"是否愿意分享结果或用作联合国减少灾害风险办公室和合作伙伴的实例/案例研究："]
[]
[null,"利益相关方信息"]
[null,"请在下方列举有助于此评估的所有利益相关方"]

{"sheet":"Results","index":2,"n_rows":357,"n_cols":13,"rows_kept":357,"cut":false,"hidden":false,"merged":[[211,2,211,5],[194,2,194,5],[195,2,195,5],[202,2,202,5],[203,2,203,5],[210,2,210,5],[177,2,177,5],[178,2,178,5],[179,2,179,5],[188,2,188,5],[189,2,189,5],[180,2,180,5],[181,2,181,5],[182,2,182,5],[172,2,172,5],[173,2,173,5],[174,2,174,5],[175,2,175,5],[176,2,176,5],[167,2,167,5],[168,2,168,5],[169,2,169,5],[170,2,170,5],[171,2,171,5],[162,2,162,5],[163,2,163,5],[164,2,164,5],[165,2,165,5],[166,2,166,5],[157,2,157,5],[158,2,158,5],[159,2,159,5],[160,2,160,5],[161,2,161,5],[156,2,156,5],[128,2,128,5],[137,2,137,5],[138,2,138,5],[139,2,139,5],[140,2,140,5],[153,2,153,5],[136,2,136,5],[131,1,131,6],[133,2,133,5],[134,2,134,5],[135,2,135,5],[102,2,102,5],[103,2,103,5],[104,2,104,5],[122,2,122,5],[123,2,123,5],[73,2,73,5],[74,2,74,5],[75,2,75,5],[86,2,86,5],[87,2,87,5],[89,2,89,5],[90,2,90,5],[91,2,91,5],[118,2,118,5],[114,1,114,6],[116,2,116,5],[117,2,117,5],[119,2,119,5],[120,2,120,5],[121,2,121,5],[42,2,42,5],[54,2,54,5],[70,2,70,5],[71,2,71,5],[72,2,72,5],[37,2,37,5],[38,2,38,5],[39,2,39,5],[40,2,40,5],[41,2,41,5],[34,2,34,5],[35,2,35,5],[36,2,36,5],[150,2,150,5],[151,2,151,5],[152,2,152,5],[49,2,49,5],[50,2,50,5],[51,2,51,5],[52,2,52,5],[53,2,53,5],[66,2,66,5],[67,2,67,5],[68,2,68,5],[69,2,69,5],[101,2,101,5],[97,1,97,6],[82,2,82,5],[83,2,83,5],[84,2,84,5],[85,2,85,5],[99,2,99,5],[100,2,100,5],[88,2,88,5],[124,2,124,5],[125,2,125,5],[126,2,126,5],[127,2,127,5],[223,1,223,3],[185,1,185,6],[187,2,187,5],[196,2,196,5],[197,2,197,5],[198,2,198,5],[199,2,199,5],[200,2,200,5],[201,2,201,5],[206,1,206,6],[208,2,208,5],[209,2,209,5],[190,2,190,5],[191,2,191,5],[192,2,192,5],[193,2,193,5],[141,2,141,5],[142,2,142,5],[154,2,154,5],[155,2,155,5]]}
[]
[]
[]
[]
[]
[]
[]
[]
[]
[]
[]
[]
[]
[]
[]
[]
[]
[]
[]
[]
[]
[]
[]
[]
[]
[]
[]
[]
[]
[]
[]
[]
[null,"要素1：为了御灾能力的组织和管理"]
[]
[null,{"$f":"C240","v":"1.1.1"},{"$f":"E240","v":"计划制定中的风险考虑"},null,null,null,{"$f":"F240","v":0}]
[null,"1.1.2",{"$f":"E241","v":"计划制定过程中的咨询协商"},null,null,null,0]
[null,"1.1.3","战略计划复审",null,null,null,0]
[null,"1.2.1",{"$f":"E243","v":"灾前计划和准备"},null,null,null,0]
[null,"1.2.2",{"$f":"E244","v":"协调与响应"},null,null,null,0]
[null,"1.2.3",{"$f":"E245","v":"城市资源与组织管理、协调和参与"},null,null,null,0]
[null,"1.2.4",{"$f":"E246","v":"辨认实质资助"},null,null,null,0]
[null,"1.3.1",{"$f":"E247","v":"御灾力及其他倡议的整合"},null,null,null,0]
[null,{"$f":"C248","v":"1.4.1"},{"$f":"E248","v":"可共享的城市灾后恢复数据"},null,null,null,{"$f":"F248","v":0}]
[]
[]
[]
[]
[null,"要素2：辨别、了解与使用现有以及未来的风险情景"]
[]
[null,{"$f":"C249","v":"2.1.1"},{"$f":"E249","v":"关于城市面临的致灾因子及其发生概率的了解"},null,null,null,{"$f":"F249","v":0}]
[null,{"$f":"C250","v":"2.2.1"},{"$f":"E250","v":"关于暴露在致灾因子下及脆弱性"},null,null,null,{"$f":"F250","v":0}]
[null,"2.2.2","伤害与损失评估",null,null,null,0]
[null,"2.3.1","对重要资产及其相互关联的了解",null,null,null,0]
[null,"2.4.1","致灾因子地图",null,null,null,0]
[null,"2.5.1",{"$f":"E254","v":"更新流程"},null,null,null,0]
[]
[]
[]
[]
[]
[]
[]
[]
[]
[null,"要素3：加强御灾的财力"]
[]
[null,{"$f":"C255","v":"3.1.1"},{"$f":"E255","v":"根据需要，了解所有可能的融资和资金储备方式 城市正在按要求积极推行融资和储备资金 "},null,null,null,{"$f":"F255","v":0}]
[null,{"$f":"C256","v":"3.2.1"},{"$f":"E256","v":"关于御灾力所需的一切行动的财务规划 "},null,null,null,{"$f":"F256","v":0}]
[null,"3.2.2","为长期工程和其他计划提供资金，用于处理要素2和8中确定的情景和关键资产 ",null,null,null,0]
[null,"3.2.3","启动资金满足所有御灾相关活动的开支 ",null,null,null,0]
[null,"3.2.4","灾后重建的应急性资金 ",null,null,null,0]
[null,"3.3.1","国内保险 ",null,null,null,0]
[null,{"$f":"C261","v":"3.3.2"},"非国内保险 ",null,null,null,0]
[null,{"$f":"C262","v":"3.4.1"},"鼓励企业组织提高御灾能力 – 灾害计划，场所等 ",null,null,null,0]
[null,{"$f":"C263","v":"3.4.2"},"鼓励非营利性组织提高御灾能力 - 灾害计划，场所等 ",null,null,null,0]
[null,{"$f":"C264","v":"3.4.3"},"鼓励房产拥有者提高御灾能力 - 灾害计划，场所等 ",null,null,null,0]
[]
[]
[]
[]
[null,"要素4：追寻弹性城市发展"]
[]
[null,{"$f":"C265","v":"4.1.1"},{"$f":"E265","v":"潜在的被迫移居人口"},null,null,null,{"$f":"F265","v":0}]
[null,"4.1.2","受威胁的经济活动",null,null,null,0]
[null,"4.1.2.1","面临风险的农业用地",null,null,null,0]
[null,"4.1.3","新型城市发展",null,null,null,0]
[null,"4.2.1","提高御灾力的城市设计解决方案",null,null,null,0]
[null,"4.3.1","专为应对要素2所提及的已识别的风险而制定的建造规范",null,null,null,0]
[null,"4.3.2","建造规范的更新",null,null,null,0]
[null,"4.3.3","具可持续性的建筑设计标准",null,null,null,0]
[null,"4.4.1","土地用途规划的运用",null,null,null,0]
[null,"4.4.2","建造规范的运用",null,null,null,0]
[]
[]
[]
[]
[]
[null,"要素5：保护自然缓冲区，以增强自然生态系统的保护功能"]
[]
[null,{"$f":"C275","v":"5.1.1"},{"$f":"E275","v":"对生态系统服务可能在城市御灾力中发挥的作用的认识 "},null,null,null,{"$f":"F275","v":0}]
[null,{"$f":"C276","v":"5.1.2"},{"$f":"E276","v":"生态系统健康 "},null,null,null,{"$f":"F276","v":0}]
[null,"5.2.1","土地使用和其他政策对生态系统服务的影响 ",null,null,null,0]
[null,"5.2.2",{"$f":"E278","v":"绿色和蓝色基础设施频繁涵盖于城市项目中 "},null,null,null,0]
[null,"5.3.1","确定关键环境资产 ",null,null,null,0]
[null,"5.3.2","跨界协议 ",null,null,null,0]
[]
[]
[]
[]
[]
[]
[]
[]
[]
[null,"要素6：加强机构的御灾力"]
[]
[null,{"$f":"C281","v":"6.1.1"},{"$f":"E281","v":"御灾的技能和经验可用性－识别风险、减灾、规划、应对和灾后处理 "},null,null,null,{"$f":"F281","v":0}]
[null,{"$f":"C282","v":"6.1.2"},{"$f":"E282","v":"与私营部门／私人行业的联系 "},null,null,null,{"$f":"F282","v":0}]
[null,"6.1.3","保险行业的参与度 ",null,null,null,0]
[null,"6.1.4","与民间社会的联系 ",null,null,null,0]
[null,"6.2.1","公众接受教育和进行意识提高的材料/信息 ",null,null,null,0]
[null,"6.2.1.1","公众接受教育和进行意识提高的材料/信息 ",null,null,null,0]
[null,"6.3.1",{"$f":"E287","v":"与其它有关城市御灾的机构共享关于城市御灾数据的程度 "},null,null,null,0]
[null,"6.3.2","与社会机构和公众共享关于城市御灾力情况的数据的程度 ",null,null,null,0]
[null,"6.4.1","集中于风险和御灾力的训练的可行性和实践（专业训练） ",null,null,null,0]
[null,"6.4.1.1","集中于风险和御灾力的训练的可行性和实践（专业训练） ",null,null,null,0]
[null,"6.4.2","对相关培训进行更新的系统／进程 ",null,null,null,0]
[null,"6.5.1",{"$f":"E292","v":"城市内所有语言群体接受教育和训练的机会 "},null,null,null,0]
[null,"6.6.1","为学习其它城市、洲和国家如何增强御灾力所作的努力 ",null,null,null,0]
[]
[]
[null,"要素7：理解及强化御灾中的社会能力"]
[]
[null,{"$f":"C294","v":"7.1.1"},{"$f":"E294","v":"社区组织 或 “草根” 民间组织在整个城市中的覆盖范围 "},null,null,null,{"$f":"F294","v":0}]
[null,{"$f":"C295","v":"7.1.2"},{"$f":"E295","v":"社区网络的有效性 "},null,null,null,{"$f":"F295","v":0}]
[null,"7.1.2.1","社区网络的有效性 ",null,null,null,0]
[null,"7.2.1","社会的连通性及社区的凝聚力 ",null,null,null,0]
[null,"7.2.2",{"$f":"E298","v":"弱势群体的参与程度 "},null,null,null,0]
[null,"7.3.1","雇主充当雇员渠道的程度 ",null,null,null,0]
[null,"7.3.2","灾后企业业务连续性的规划 ",null,null,null,0]
[null,"7.4.1","市民参与的频率 ",null,null,null,0]
[null,"7.4.2","运用手机端或电子邮件端的“用户参与系统” 来让居民在灾前和灾后获取和反馈最新资讯 ",null,null,null,0]
[null,"7.4.3","验证相关教育培训的有效性 ",null,null,null,0]
[]
[]
[]
[]
[]
[null,"要素8：增强设施的复原能力"]
[]
[null,{"$f":"C304","v":"8.1.1"},{"$f":"E304","v":"充足的保护设施 （参考要素5，生态系统可以提供天然缓冲） "},null,null,null,{"$f":"F304","v":0}]
[null,"8.1.2",{"$f":"E305","v":"对保护设施的有效护理 "},null,null,null,{"$f":"F305","v":0}]
[null,"8.2.1","本应正常提供公共服务期间，因为该服务缺失或减少可能带来的损失或消极影响 ",null,null,null,0]
[null,"8.2.2","缺少卫生用水对重要的资源有可能造成的影响 ",null,null,null,0]
[null,"8.2.3",{"$f":"E308","v":"恢复正常供应所需支出"},null,null,null,0]
[null,"8.3.1","本应提供正常公共服务期间，因为该服务缺失或减少可能带来的损失或者消极影响",null,null,null,0]
[null,"8.3.2","因能源供给减少给别的特定资源所提供的公共服务造成的损失",null,null,null,0]
[null,"8.3.3","恢复正常供应所需支出",null,null,null,0]
[null,"8.4.1","(在有的前提下）各类气体供应系统的安全性和完整度",null,null,null,{"$f":"IF(I312=TRUE,0,F312)","v":0}]
[null,"8.4.2","本应提供正常公共服务期间，因为该服务缺失或减少可能带来的损失或者消极影响",null,null,null,{"$f":"IF(I313=TRUE,0,F313)","v":0}]
[null,"8.4.3","气体资源供给减少给别的特定资源所提供的公共服务造成的损失",null,null,null,0]
[null,"8.4.4","恢复正常公共服务所需支出",null,null,null,0]
[null,"8.5.1","道路 - 存在风险的道路服务系统 ",null,null,null,0]
[null,"8.5.2","道路 -  剩余重要通路及疏散路线 ",null,null,null,0]
[null,"8.5.3","铁路（若适用） -  存在损失风险的铁路系统服务 ",null,null,null,{"$f":"IF(I318=TRUE,0,F318)","v":0}]
[null,"8.5.4","航空（若适用） ",null,null,null,{"$f":"IF(I319=TRUE,0,F319)","v":0}]
[null,"8.5.5","河道/海路（若适用） ",null,null,null,0]
[null,"8.5.6","其他公共交通（若适用） ",null,null,null,0]
[null,"8.5.7","恢复服务的成本（所有交通运输路线） ",null,null,null,0]
[null,"8.6.1","存在损失风险的通讯服务天数 ",null,null,null,0]
[null,"8.6.2","特定重要资产服务天数由于通讯故障存在风险 ",null,null,null,0]
[null,"8.6.3","复建耗资 ",null,null,null,0]
[null,"8.7.1","卫生保健及应急设施的结构性安全和抗灾能力（人员配备/第一响应方 - 见要素9） ",null,null,null,0]
[null,"8.7.1.1","结构性安全，卫生保健设施的抗灾能力以及应急设施 （人员配备/急救人员 - 见要素9） ",null,null,null,0]
[null,"8.7.2","健康记录与数据 ",null,null,null,0]
[null,"8.7.3","紧急医疗服务的可用性，包括急需的设备与紧急药物供应 ",null,null,null,0]
[null,"8.8.1","教育设施的结构性安全 ",null,null,null,0]
[null,"8.8.2","教学时间损失 ",null,null,null,0]
[null,"8.8.3"," 教育数据",null,null,null,0]
[null,"8.9.1","监狱系统的御灾力 ",null,null,null,0]
[null,"8.10.1",{"$f":"E334","v":"保障所有重要行政功能的持续性 "},null,null,null,0]
[null,"8.11.1","对政府开展工作有重要作用的计算机系统和数据的持续性保障 ",null,null,null,0]
[null,"8.11.2","对以上任何基础设施有重要作用的计算机系统和数据的持续性保障 ",null,null,null,0]
[]
[]
[null,"要素9：确保有效应对灾难"]
[]
[null,{"$f":"C337","v":"9.1.1"},{"$f":"E337","v":"早期预警系统的存在及效力"},null,null,null,{"$f":"F337","v":0}]
[null,{"$f":"C338","v":"9.1.1.1"},{"$f":"E338","v":"预警范围"},null,null,null,{"$f":"F338","v":0}]
[null,"9.2.1","将专业救援人员与社区组织有机结合的应急响应计划的存在（灾后救援详见要素10）",null,null,null,0]
[null,"9.3.1","除履行最先反应的职责外警察的突发救援能力",null,null,null,0]
[null,"9.3.2","确定第一反应人员和其他人员的需求及可出动性",null,null,null,0]
[null,"9.4.1","确定设备和物资的需求及设备的可用性",null,null,null,0]
[null,"9.4.1.1","确定设备和物资的需求及设备的可用性",null,null,null,0]
[null,"9.5.1","可继续为人口提供食物的能力",null,null,null,0]
[null,"9.5.2","可保证避难处或安全地点的能力",null,null,null,0]
[null,"9.5.2.1",{"$f":"E346","v":"可保证避难处或安全地点的能力"},null,null,null,0]
[null,"9.5.3",{"$f":"E347","v":"满足可能存在的日常用品需求的能力"},null,null,null,0]
[null,"9.5.4","可能保证燃料供给的能力在关键系统及程序方面的互通性",null,null,null,0]
[null,"9.6.1","与邻城/国及其他级别政府就关键系统及流程的互通性",null,null,null,0]
[null,"9.6.2","紧急行动中心",null,null,null,0]
[null,"9.6.3","灾后重建合作",null,null,null,0]
[null,"9.7.1",{"$f":"E352","v":"实践与演习——公众与专家共同参与"},null,null,null,0]
[null,{"$f":"C353","v":"9.7.2"},"演习及培训的效力",null,null,null,0]
[]
[]
[null,"要素10：加速灾后恢复与更好的重建"]
[]
[null,{"$f":"C354","v":"10.1.1"},{"$f":"E354","v":"规划灾后恢复与经济复苏"},null,null,null,{"$f":"F354","v":0}]
[null,{"$f":"C355","v":"10.1.2"},{"$f":"E355","v":"相关人员参与关于灾后重建与复苏计划讨论的程度"},null,null,null,{"$f":"F355","v":0}]
[null,"10.1.3",{"$f":"E356","v":"跟进财务对即将到来援助的处理与基金支出的安排"},null,null,null,0]
[null,"10.2.1","学习循环",null,null,null,0]
[]
[]
[]
[]
[]
[]
[]
[]
[]
[]
[]
[null,{"$f":"TODAY()","v":"2022-04-13"}]
[]
[]
[null,null,"Label","Name",null,"Essential","TotalScore","MaxScore","Label"]
[null,null,"S1","1.   Organise for Disaster Resilience",null,"E1",{"$f":"SUMIFS($F$240:$F$1219,$B$240:$B$1219,F228)","v":0},{"$f":"COUNTIFS($B$240:$B$357,F228)*5","v":45},"01",null,{"$f":"SUM(G228:G237)","v":0},{"$f":"K228/K229","v":0},{"$f":"CONCATENATE(\"该评估的总分为 \",SUM(G228:G237),\" / \",SUM(H228:H237))","v":"该评估的总分为 0 / 590"}]
[null,null,"S2","2.   Identify, Understand and Use Current and Future Risk Scenarios",null,"E2",0,30,"02",null,{"$f":"SUM(H228:H237)","v":590},{"$f":"1-L228","v":1}]
[null,null,"S3","3.   Strengthen Financial Capacity for Resilience",null,"E3",0,50,"03"]
[null,null,"S4","4.   Pursue Resilient Urban Development and Design",null,"E4",0,50,"04"]
[null,null,"S5","5.   Safeguard Natural Buffers to Enhance Ecosystems’ Protective Functions",null,"E5",0,30,"05"]
[null,null,"S6","6.   Strengthen Institutional Capacity for Resilience",null,"E6",0,65,"06"]
[null,null,"S7","7.   Understand and Strengthen Societal Capacity for Resilience",null,"E7",0,50,"07"]
[null,null,"S8","8.   Increase Infrastructure Resilience",null,"E8",{"$f":"SUMIFS($F$240:$F$1219,$B$240:$B$1219,F235)-SUMIFS($F$240:$F$1219,$B$240:$B$1219,F235,$I$240:$I$1219,TRUE)","v":0},{"$f":"(COUNTIFS($B$240:$B$357,F235)-COUNTIFS(I312:I321,TRUE))*5","v":165},"08","Note: This row has different formulas to discount questions that are N/A"]
[null,null,"S9","9.   Ensure Effective Disaster Response",null,"E9",0,85,"09"]
[null,null,"S10","10. Expedite Recovery and Build Back Better",null,"E10",0,20,"10"]
[]
[null,"Section","Ref",null,"Question","SelectedScore","ThisScore"]
[null,"E1","1.1.1",null,"计划制定中的风险考虑",{"$f":"IF(G240=\"\",0,IF(G240=0,0,6-G240))","v":0},{"$f":"OFFSET('E01'!$E$1,MATCH(C240,'E01'!G:G,0)+3,0)","v":0}]
[null,"E1","1.1.2",null,"计划制定过程中的咨询协商",{"$f":"IF(G241=\"\",0,IF(G241=0,0,6-G241))","v":0},{"$f":"OFFSET('E01'!$E$1,MATCH(C241,'E01'!G:G,0)+3,0)","v":0}]
[null,"E1","1.1.3",null,"战略计划复审",0,{"$f":"OFFSET('E01'!$E$1,MATCH(C242,'E01'!G:G,0)+3,0)","v":0}]
[null,"E1","1.2.1",null,"灾前计划和准备",0,{"$f":"OFFSET('E01'!$E$1,MATCH(C243,'E01'!G:G,0)+3,0)","v":0}]
[null,"E1","1.2.2",null,"协调与响应",0,{"$f":"OFFSET('E01'!$E$1,MATCH(C244,'E01'!G:G,0)+3,0)","v":0}]
[null,"E1","1.2.3",null,"城市资源与组织管理、协调和参与",0,{"$f":"OFFSET('E01'!$E$1,MATCH(C245,'E01'!G:G,0)+3,0)","v":0}]
[null,"E1","1.2.4",null,"辨认实质资助",0,{"$f":"OFFSET('E01'!$E$1,MATCH(C246,'E01'!G:G,0)+3,0)","v":0}]
[null,"E1","1.3.1",null,"御灾力及其他倡议的整合",0,{"$f":"OFFSET('E01'!$E$1,MATCH(C247,'E01'!G:G,0)+3,0)","v":0}]
[null,"E1","1.4.1",null,"可共享的城市灾后恢复数据",0,{"$f":"OFFSET('E01'!$E$1,MATCH(C248,'E01'!G:G,0)+3,0)","v":0}]
[null,"E2","2.1.1",null,"关于城市面临的致灾因子及其发生概率的了解",0,{"$f":"OFFSET('E02'!$E$1,MATCH(C249,'E02'!G:G,0)+3,0)","v":0}]
[null,"E2","2.2.1",null,"关于暴露在致灾因子下及脆弱性",0,{"$f":"OFFSET('E02'!$E$1,MATCH(C250,'E02'!G:G,0)+3,0)","v":0}]
[null,"E2","2.2.2",null,"伤害与损失评估",0,{"$f":"OFFSET('E02'!$E$1,MATCH(C251,'E02'!G:G,0)+3,0)","v":0}]
[null,"E2","2.3.1",null,"对重要资产及其相互关联的了解",0,{"$f":"OFFSET('E02'!$E$1,MATCH(C252,'E02'!G:G,0)+3,0)","v":0}]
[null,"E2","2.4.1",null,"致灾因子地图",0,{"$f":"OFFSET('E02'!$E$1,MATCH(C253,'E02'!G:G,0)+3,0)","v":0}]
[null,"E2","2.5.1",null,"更新流程",0,{"$f":"OFFSET('E02'!$E$1,MATCH(C254,'E02'!G:G,0)+3,0)","v":0}]
[null,"E3","3.1.1",null,"根据需要，了解所有可能的融资和资金储备方式 城市正在按要求积极推行融资和储备资金 ",0,{"$f":"OFFSET('E03'!$E$1,MATCH(C255,'E03'!G:G,0)+3,0)","v":0}]
[null,"E3","3.2.1",null,"关于御灾力所需的一切行动的财务规划 ",0,{"$f":"OFFSET('E03'!$E$1,MATCH(C256,'E03'!G:G,0)+3,0)","v":0}]
[null,"E3","3.2.2",null,"为长期工程和其他计划提供资金，用于处理要素2和8中确定的情景和关键资产 ",0,{"$f":"OFFSET('E03'!$E$1,MATCH(C257,'E03'!G:G,0)+3,0)","v":0}]
[null,"E3","3.2.3",null,"启动资金满足所有御灾相关活动的开支 ",0,{"$f":"OFFSET('E03'!$E$1,MATCH(C258,'E03'!G:G,0)+3,0)","v":0}]
[null,"E3","3.2.4",null,"灾后重建的应急性资金 ",0,{"$f":"OFFSET('E03'!$E$1,MATCH(C259,'E03'!G:G,0)+3,0)","v":0}]
[null,"E3","3.3.1",null,"国内保险 ",0,{"$f":"OFFSET('E03'!$E$1,MATCH(C260,'E03'!G:G,0)+3,0)","v":0}]
[null,"E3","3.3.2",null,"非国内保险 ",0,{"$f":"OFFSET('E03'!$E$1,MATCH(C261,'E03'!G:G,0)+3,0)","v":0}]
[null,"E3","3.4.1",null,"鼓励企业组织提高御灾能力 – 灾害计划，场所等 ",0,{"$f":"OFFSET('E03'!$E$1,MATCH(C262,'E03'!G:G,0)+3,0)","v":0}]
[null,"E3","3.4.2",null,"鼓励非营利性组织提高御灾能力 - 灾害计划，场所等 ",0,{"$f":"OFFSET('E03'!$E$1,MATCH(C263,'E03'!G:G,0)+3,0)","v":0}]
[null,"E3","3.4.3",null,"鼓励房产拥有者提高御灾能力 - 灾害计划，场所等 ",0,{"$f":"OFFSET('E03'!$E$1,MATCH(C264,'E03'!G:G,0)+3,0)","v":0}]
[null,"E4","4.1.1",null,"潜在的被迫移居人口",0,{"$f":"OFFSET('E04'!$E$1,MATCH(C265,'E04'!G:G,0)+3,0)","v":0}]
[null,"E4","4.1.2",null,"受威胁的经济活动",0,{"$f":"OFFSET('E04'!$E$1,MATCH(C266,'E04'!G:G,0)+3,0)","v":0}]
[null,"E4","4.1.2.1",null,"面临风险的农业用地",0,{"$f":"OFFSET('E04'!$E$1,MATCH(C267,'E04'!G:G,0)+3,0)","v":0}]
[null,"E4","4.1.3",null,"新型城市发展",0,{"$f":"OFFSET('E04'!$E$1,MATCH(C268,'E04'!G:G,0)+3,0)","v":0}]
[null,"E4","4.2.1",null,"提高御灾力的城市设计解决方案",0,{"$f":"OFFSET('E04'!$E$1,MATCH(C269,'E04'!G:G,0)+3,0)","v":0}]
[null,"E4","4.3.1",null,"专为应对要素2所提及的已识别的风险而制定的建造规范",0,{"$f":"OFFSET('E04'!$E$1,MATCH(C270,'E04'!G:G,0)+3,0)","v":0}]
[null,"E4","4.3.2",null,"建造规范的更新",0,{"$f":"OFFSET('E04'!$E$1,MATCH(C271,'E04'!G:G,0)+3,0)","v":0}]
[null,"E4","4.3.3",null,"具可持续性的建筑设计标准",0,{"$f":"OFFSET('E04'!$E$1,MATCH(C272,'E04'!G:G,0)+3,0)","v":0}]
[null,"E4","4.4.1",null,"土地用途规划的运用",0,{"$f":"OFFSET('E04'!$E$1,MATCH(C273,'E04'!G:G,0)+3,0)","v":0}]
[null,"E4","4.4.2",null,"建造规范的运用",0,{"$f":"OFFSET('E04'!$E$1,MATCH(C274,'E04'!G:G,0)+3,0)","v":0}]
[null,"E5","5.1.1",null,"对生态系统服务可能在城市御灾力中发挥的作用的认识 ",0,{"$f":"OFFSET('E05'!$E$1,MATCH(C275,'E05'!G:G,0)+3,0)","v":0}]
[null,"E5","5.1.2",null,"生态系统健康 ",0,{"$f":"OFFSET('E05'!$E$1,MATCH(C276,'E05'!G:G,0)+3,0)","v":0}]
[null,"E5","5.2.1",null,"土地使用和其他政策对生态系统服务的影响 ",0,{"$f":"OFFSET('E05'!$E$1,MATCH(C277,'E05'!G:G,0)+3,0)","v":0}]
[null,"E5","5.2.2",null,"绿色和蓝色基础设施频繁涵盖于城市项目中 ",0,{"$f":"OFFSET('E05'!$E$1,MATCH(C278,'E05'!G:G,0)+3,0)","v":0}]
[null,"E5","5.3.1",null,"确定关键环境资产 ",0,{"$f":"OFFSET('E05'!$E$1,MATCH(C279,'E05'!G:G,0)+3,0)","v":0}]
[null,"E5","5.3.2",null,"跨界协议 ",0,{"$f":"OFFSET('E05'!$E$1,MATCH(C280,'E05'!G:G,0)+3,0)","v":0}]
[null,"E6","6.1.1",null,"御灾的技能和经验可用性－识别风险、减灾、规划、应对和灾后处理 ",0,{"$f":"OFFSET('E06'!$E$1,MATCH(C281,'E06'!G:G,0)+3,0)","v":0}]
[null,"E6","6.1.2",null,"与私营部门／私人行业的联系 ",0,{"$f":"OFFSET('E06'!$E$1,MATCH(C282,'E06'!G:G,0)+3,0)","v":0}]
[null,"E6","6.1.3",null,"保险行业的参与度 ",0,{"$f":"OFFSET('E06'!$E$1,MATCH(C283,'E06'!G:G,0)+3,0)","v":0}]
[null,"E6","6.1.4",null,"与民间社会的联系 ",0,{"$f":"OFFSET('E06'!$E$1,MATCH(C284,'E06'!G:G,0)+3,0)","v":0}]
[null,"E6","6.2.1",null,"公众接受教育和进行意识提高的材料/信息 ",0,{"$f":"OFFSET('E06'!$E$1,MATCH(C285,'E06'!G:G,0)+3,0)","v":0}]
[null,"E6","6.2.1.1",null,"公众接受教育和进行意识提高的材料/信息 ",0,{"$f":"OFFSET('E06'!$E$1,MATCH(C286,'E06'!G:G,0)+3,0)","v":0}]
[null,"E6","6.3.1",null,"与其它有关城市御灾的机构共享关于城市御灾数据的程度 ",0,{"$f":"OFFSET('E06'!$E$1,MATCH(C287,'E06'!G:G,0)+3,0)","v":0}]
[null,"E6","6.3.2",null,"与社会机构和公众共享关于城市御灾力情况的数据的程度 ",0,{"$f":"OFFSET('E06'!$E$1,MATCH(C288,'E06'!G:G,0)+3,0)","v":0}]
[null,"E6","6.4.1",null,"集中于风险和御灾力的训练的可行性和实践（专业训练） ",0,{"$f":"OFFSET('E06'!$E$1,MATCH(C289,'E06'!G:G,0)+3,0)","v":0}]
[null,"E6","6.4.1.1",null,"集中于风险和御灾力的训练的可行性和实践（专业训练） ",0,{"$f":"OFFSET('E06'!$E$1,MATCH(C290,'E06'!G:G,0)+3,0)","v":0}]
[null,"E6","6.4.2",null,"对相关培训进行更新的系统／进程 ",0,{"$f":"OFFSET('E06'!$E$1,MATCH(C291,'E06'!G:G,0)+3,0)","v":0}]
[null,"E6","6.5.1",null,"城市内所有语言群体接受教育和训练的机会 ",0,{"$f":"OFFSET('E06'!$E$1,MATCH(C292,'E06'!G:G,0)+3,0)","v":0}]
[null,"E6","6.6.1",null,"为学习其它城市、洲和国家如何增强御灾力所作的努力 ",0,{"$f":"OFFSET('E06'!$E$1,MATCH(C293,'E06'!G:G,0)+3,0)","v":0}]
[null,"E7","7.1.1",null,"社区组织 或 “草根” 民间组织在整个城市中的覆盖范围 ",0,{"$f":"OFFSET('E07'!$E$1,MATCH(C294,'E07'!G:G,0)+3,0)","v":0}]
[null,"E7","7.1.2",null,"社区网络的有效性 ",0,{"$f":"OFFSET('E07'!$E$1,MATCH(C295,'E07'!G:G,0)+3,0)","v":0}]
[null,"E7","7.1.2.1",null,"社区网络的有效性 ",0,{"$f":"OFFSET('E07'!$E$1,MATCH(C296,'E07'!G:G,0)+3,0)","v":0}]
[null,"E7","7.2.1",null,"社会的连通性及社区的凝聚力 ",0,{"$f":"OFFSET('E07'!$E$1,MATCH(C297,'E07'!G:G,0)+3,0)","v":0}]
[null,"E7","7.2.2",null,"弱势群体的参与程度 ",0,{"$f":"OFFSET('E07'!$E$1,MATCH(C298,'E07'!G:G,0)+3,0)","v":0}]
[null,"E7","7.3.1",null,"雇主充当雇员渠道的程度 ",0,{"$f":"OFFSET('E07'!$E$1,MATCH(C299,'E07'!G:G,0)+3,0)","v":0}]
[null,"E7","7.3.2",null,"灾后企业业务连续性的规划 ",0,{"$f":"OFFSET('E07'!$E$1,MATCH(C300,'E07'!G:G,0)+3,0)","v":0}]
[null,"E7","7.4.1",null,"市民参与的频率 ",0,{"$f":"OFFSET('E07'!$E$1,MATCH(C301,'E07'!G:G,0)+3,0)","v":0}]
[null,"E7","7.4.2",null,"运用手机端或电子邮件端的“用户参与系统” 来让居民在灾前和灾后获取和反馈最新资讯 ",0,{"$f":"OFFSET('E07'!$E$1,MATCH(C302,'E07'!G:G,0)+3,0)","v":0}]
[null,"E7","7.4.3",null,"验证相关教育培训的有效性 ",0,{"$f":"OFFSET('E07'!$E$1,MATCH(C303,'E07'!G:G,0)+3,0)","v":0}]
[null,"E8","8.1.1",null,"充足的保护设施 （参考要素5，生态系统可以提供天然缓冲） ",0,{"$f":"OFFSET('E08'!$E$1,MATCH(C304,'E08'!G:G,0)+3,0)","v":0}]
[null,"E8","8.1.2",null,"对保护设施的有效护理 ",{"$f":"IF(G305=\"\",0,IF(G305=0,0,6-G305))","v":0},{"$f":"OFFSET('E08'!$E$1,MATCH(C305,'E08'!G:G,0)+3,0)","v":0}]
[null,"E8","8.2.1",null,"本应正常提供公共服务期间，因为该服务缺失或减少可能带来的损失或消极影响 ",0,{"$f":"OFFSET('E08'!$E$1,MATCH(C306,'E08'!G:G,0)+3,0)","v":0}]
[null,"E8","8.2.2",null,"缺少卫生用水对重要的资源有可能造成的影响 ",0,{"$f":"OFFSET('E08'!$E$1,MATCH(C307,'E08'!G:G,0)+3,0)","v":0}]
[null,"E8","8.2.3",null,"恢复正常供应所需支出",0,{"$f":"OFFSET('E08'!$E$1,MATCH(C308,'E08'!G:G,0)+3,0)","v":0}]
[null,"E8","8.3.1",null,"本应提供正常公共服务期间，因为该服务缺失或减少可能带来的损失或者消极影响",0,{"$f":"OFFSET('E08'!$E$1,MATCH(C309,'E08'!G:G,0)+3,0)","v":0}]
[null,"E8","8.3.2",null,"因能源供给减少给别的特定资源所提供的公共服务造成的损失",0,{"$f":"OFFSET('E08'!$E$1,MATCH(C310,'E08'!G:G,0)+3,0)","v":0}]
[null,"E8","8.3.3",null,"恢复正常供应所需支出",0,{"$f":"OFFSET('E08'!$E$1,MATCH(C311,'E08'!G:G,0)+3,0)","v":0}]
[null,"E8","8.4.1",null,"(在有的前提下）各类气体供应系统的安全性和完整度",0,{"$f":"OFFSET('E08'!$E$1,MATCH(C312,'E08'!G:G,0)+3,0)","v":0},"NA?",{"$f":"OFFSET('E08'!$E$1,MATCH(C312,'E08'!G:G,0)-1,0)","v":0}]
[null,"E8","8.4.2",null,"本应提供正常公共服务期间，因为该服务缺失或减少可能带来的损失或者消极影响",0,{"$f":"OFFSET('E08'!$E$1,MATCH(C313,'E08'!G:G,0)+3,0)","v":0},"NA?",{"$f":"OFFSET('E08'!$E$1,MATCH(C313,'E08'!G:G,0)-1,0)","v":0}]
[null,"E8","8.4.3",null,"气体资源供给减少给别的特定资源所提供的公共服务造成的损失",0,{"$f":"OFFSET('E08'!$E$1,MATCH(C314,'E08'!G:G,0)+3,0)","v":0},"NA?",{"$f":"OFFSET('E08'!$E$1,MATCH(C314,'E08'!G:G,0)-1,0)","v":0}]
[null,"E8","8.4.4",null,"恢复正常公共服务所需支出",0,{"$f":"OFFSET('E08'!$E$1,MATCH(C315,'E08'!G:G,0)+3,0)","v":0},"NA?",{"$f":"OFFSET('E08'!$E$1,MATCH(C315,'E08'!G:G,0)-1,0)","v":0}]
[null,"E8","8.5.1",null,"道路 - 存在风险的道路服务系统 ",0,{"$f":"OFFSET('E08'!$E$1,MATCH(C316,'E08'!G:G,0)+3,0)","v":0}]
[null,"E8","8.5.2",null,"道路 -  剩余重要通路及疏散路线 ",0,{"$f":"OFFSET('E08'!$E$1,MATCH(C317,'E08'!G:G,0)+3,0)","v":0}]
[null,"E8","8.5.3",null,"铁路（若适用） -  存在损失风险的铁路系统服务 ",0,{"$f":"OFFSET('E08'!$E$1,MATCH(C318,'E08'!G:G,0)+3,0)","v":0},"NA?",{"$f":"OFFSET('E08'!$E$1,MATCH(C318,'E08'!G:G,0)-1,0)","v":0}]
[null,"E8","8.5.4",null,"航空（若适用） ",0,{"$f":"OFFSET('E08'!$E$1,MATCH(C319,'E08'!G:G,0)+3,0)","v":0},"NA?",{"$f":"OFFSET('E08'!$E$1,MATCH(C319,'E08'!G:G,0)-1,0)","v":0}]
[null,"E8","8.5.5",null,"河道/海路（若适用） ",0,{"$f":"OFFSET('E08'!$E$1,MATCH(C320,'E08'!G:G,0)+3,0)","v":0},"NA?",{"$f":"OFFSET('E08'!$E$1,MATCH(C320,'E08'!G:G,0)-1,0)","v":0}]
[null,"E8","8.5.6",null,"其他公共交通（若适用） ",0,{"$f":"OFFSET('E08'!$E$1,MATCH(C321,'E08'!G:G,0)+3,0)","v":0},"NA?",{"$f":"OFFSET('E08'!$E$1,MATCH(C321,'E08'!G:G,0)-1,0)","v":0}]
[null,"E8","8.5.7",null,"恢复服务的成本（所有交通运输路线） ",0,{"$f":"OFFSET('E08'!$E$1,MATCH(C322,'E08'!G:G,0)+3,0)","v":0}]
[null,"E8","8.6.1",null,"存在损失风险的通讯服务天数 ",0,{"$f":"OFFSET('E08'!$E$1,MATCH(C323,'E08'!G:G,0)+3,0)","v":0}]
[null,"E8","8.6.2",null,"特定重要资产服务天数由于通讯故障存在风险 ",0,{"$f":"OFFSET('E08'!$E$1,MATCH(C324,'E08'!G:G,0)+3,0)","v":0}]
[null,"E8","8.6.3",null,"复建耗资 ",0,{"$f":"OFFSET('E08'!$E$1,MATCH(C325,'E08'!G:G,0)+3,0)","v":0}]
[null,"E8","8.7.1",null,"卫生保健及应急设施的结构性安全和抗灾能力（人员配备/第一响应方 - 见要素9） ",0,{"$f":"OFFSET('E08'!$E$1,MATCH(C326,'E08'!G:G,0)+3,0)","v":0}]
[null,"E8","8.7.1.1",null,"结构性安全，卫生保健设施的抗灾能力以及应急设施 （人员配备/急救人员 - 见要素9） ",0,{"$f":"OFFSET('E08'!$E$1,MATCH(C327,'E08'!G:G,0)+3,0)","v":0}]
[null,"E8","8.7.2",null,"健康记录与数据 ",0,{"$f":"OFFSET('E08'!$E$1,MATCH(C328,'E08'!G:G,0)+3,0)","v":0}]
[null,"E8","8.7.3",null,"紧急医疗服务的可用性，包括急需的设备与紧急药物供应 ",0,{"$f":"OFFSET('E08'!$E$1,MATCH(C329,'E08'!G:G,0)+3,0)","v":0}]
[null,"E8","8.8.1",null,"教育设施的结构性安全 ",0,{"$f":"OFFSET('E08'!$E$1,MATCH(C330,'E08'!G:G,0)+3,0)","v":0}]
[null,"E8","8.8.2",null,"教学时间损失 ",0,{"$f":"OFFSET('E08'!$E$1,MATCH(C331,'E08'!G:G,0)+3,0)","v":0}]
[null,"E8","8.8.3",null," 教育数据",0,{"$f":"OFFSET('E08'!$E$1,MATCH(C332,'E08'!G:G,0)+3,0)","v":0}]
[null,"E8","8.9.1",null,"监狱系统的御灾力 ",0,{"$f":"OFFSET('E08'!$E$1,MATCH(C333,'E08'!G:G,0)+3,0)","v":0}]
[null,"E8","8.10.1",null,"保障所有重要行政功能的持续性 ",0,{"$f":"OFFSET('E08'!$E$1,MATCH(C334,'E08'!G:G,0)+3,0)","v":0}]
[null,"E8","8.11.1",null,"对政府开展工作有重要作用的计算机系统和数据的持续性保障 ",0,{"$f":"OFFSET('E08'!$E$1,MATCH(C335,'E08'!G:G,0)+3,0)","v":0}]
[null,"E8","8.11.2",null,"对以上任何基础设施有重要作用的计算机系统和数据的持续性保障 ",0,{"$f":"OFFSET('E08'!$E$1,MATCH(C336,'E08'!G:G,0)+3,0)","v":0}]
[null,"E9","9.1.1",null,"早期预警系统的存在及效力",0,{"$f":"OFFSET('E09'!$E$1,MATCH(C337,'E09'!G:G,0)+3,0)","v":0}]
[null,"E9","9.1.1.1",null,"预警范围",0,{"$f":"OFFSET('E09'!$E$1,MATCH(C338,'E09'!G:G,0)+3,0)","v":0}]
[null,"E9","9.2.1",null,"将专业救援人员与社区组织有机结合的应急响应计划的存在（灾后救援详见要素10）",0,{"$f":"OFFSET('E09'!$E$1,MATCH(C339,'E09'!G:G,0)+3,0)","v":0}]
[null,"E9","9.3.1",null,"除履行最先反应的职责外警察的突发救援能力",0,{"$f":"OFFSET('E09'!$E$1,MATCH(C340,'E09'!G:G,0)+3,0)","v":0}]
[null,"E9","9.3.2",null,"确定第一反应人员和其他人员的需求及可出动性",0,{"$f":"OFFSET('E09'!$E$1,MATCH(C341,'E09'!G:G,0)+3,0)","v":0}]
[null,"E9","9.4.1",null,"确定设备和物资的需求及设备的可用性",0,{"$f":"OFFSET('E09'!$E$1,MATCH(C342,'E09'!G:G,0)+3,0)","v":0}]
[null,"E9","9.4.1.1",null,"确定设备和物资的需求及设备的可用性",0,{"$f":"OFFSET('E09'!$E$1,MATCH(C343,'E09'!G:G,0)+3,0)","v":0}]
[null,"E9","9.5.1",null,"可继续为人口提供食物的能力",0,{"$f":"OFFSET('E09'!$E$1,MATCH(C344,'E09'!G:G,0)+3,0)","v":0}]
[null,"E9","9.5.2",null,"可保证避难处或安全地点的能力",0,{"$f":"OFFSET('E09'!$E$1,MATCH(C345,'E09'!G:G,0)+3,0)","v":0}]
[null,"E9","9.5.2.1",null,"可保证避难处或安全地点的能力",0,{"$f":"OFFSET('E09'!$E$1,MATCH(C346,'E09'!G:G,0)+3,0)","v":0}]
[null,"E9","9.5.3",null,"满足可能存在的日常用品需求的能力",0,{"$f":"OFFSET('E09'!$E$1,MATCH(C347,'E09'!G:G,0)+3,0)","v":0}]
[null,"E9","9.5.4",null,"可能保证燃料供给的能力在关键系统及程序方面的互通性",0,{"$f":"OFFSET('E09'!$E$1,MATCH(C348,'E09'!G:G,0)+3,0)","v":0}]
[null,"E9","9.6.1",null,"与邻城/国及其他级别政府就关键系统及流程的互通性",0,{"$f":"OFFSET('E09'!$E$1,MATCH(C349,'E09'!G:G,0)+3,0)","v":0}]
[null,"E9","9.6.2",null,"紧急行动中心",0,{"$f":"OFFSET('E09'!$E$1,MATCH(C350,'E09'!G:G,0)+3,0)","v":0}]
[null,"E9","9.6.3",null,"灾后重建合作",0,{"$f":"OFFSET('E09'!$E$1,MATCH(C351,'E09'!G:G,0)+3,0)","v":0}]
[null,"E9","9.7.1",null,"实践与演习——公众与专家共同参与",0,{"$f":"OFFSET('E09'!$E$1,MATCH(C352,'E09'!G:G,0)+3,0)","v":0}]
[null,"E9","9.7.2",null,"演习及培训的效力",0,{"$f":"OFFSET('E09'!$E$1,MATCH(C353,'E09'!G:G,0)+3,0)","v":0}]
[null,"E10","10.1.1",null,"规划灾后恢复与经济复苏",0,{"$f":"OFFSET('E10'!$E$1,MATCH(C354,'E10'!G:G,0)+3,0)","v":0}]
[null,"E10","10.1.2",null,"相关人员参与关于灾后重建与复苏计划讨论的程度",0,{"$f":"OFFSET('E10'!$E$1,MATCH(C355,'E10'!G:G,0)+3,0)","v":0}]
[null,"E10","10.1.3",null,"跟进财务对即将到来援助的处理与基金支出的安排",0,{"$f":"OFFSET('E10'!$E$1,MATCH(C356,'E10'!G:G,0)+3,0)","v":0}]
[null,"E10","10.2.1",null,"学习循环",0,{"$f":"OFFSET('E10'!$E$1,MATCH(C357,'E10'!G:G,0)+3,0)","v":0}]

{"sheet":"E01","index":3,"n_rows":125,"n_cols":7,"rows_kept":125,"cut":false,"hidden":false,"merged":[[5,2,5,3],[6,2,6,3],[7,2,7,3],[18,2,18,3],[19,2,19,3],[8,2,13,3],[118,2,123,3],[103,2,108,3],[101,2,101,3],[102,2,102,3],[20,2,20,3],[75,2,80,3],[62,2,67,3],[74,2,74,3],[115,2,115,3],[117,2,117,3],[88,2,93,3],[85,2,85,3],[86,2,86,3],[87,2,87,3],[100,2,100,3],[49,2,54,3],[34,2,39,3],[21,2,26,3],[72,2,72,3],[73,2,73,3],[31,2,31,3],[32,2,32,3],[33,2,33,3],[46,2,46,3],[47,2,47,3],[48,2,48,3],[59,2,59,3],[60,2,60,3],[61,2,61,3]]}
[]
[]
[null,"1.1 - 规划制定",null,null,null,null,"1.1"]
[]
[null,"1.1.1 - 规划制定中考虑风险",null,null,null,null,"1.1.1"]
[null,"问题","注释"]
[]
[null,"测评尺度","请提供核查方法（解释说明及证据）"]
[null,null,null,null,null,{"$f":"IF(E9=1,TRUE,FALSE)","v":false}]
[null,null,null,null,null,{"$f":"IF(E9=2,TRUE,FALSE)","v":false}]
[null,null,null,null,null,{"$f":"IF(E9=3,TRUE,FALSE)","v":false}]
[null,null,null,null,null,{"$f":"IF(E9=4,TRUE,FALSE)","v":false}]
[null,null,null,null,null,{"$f":"IF(E9=5,TRUE,FALSE)","v":false}]
[null,null,null,null,null,{"$f":"IF(E9=6,TRUE,FALSE)","v":false}]
[null,"实现韧性最大化的措施","责任机构","时间线"]
[]
[]
[null,"1.1.2 – 规划编制过程中的咨询讨论",null,null,null,null,"1.1.2"]
[null,"问题","注释"]
[]
[null,"测评尺度","‘请提供核查方法（解释说明及证据）"]
[null,null,null,null,null,{"$f":"IF(E22=1,TRUE,FALSE)","v":false}]
[null,null,null,null,null,{"$f":"IF(E22=2,TRUE,FALSE)","v":false}]
[null,null,null,null,null,{"$f":"IF(E22=3,TRUE,FALSE)","v":false}]
[null,null,null,null,null,{"$f":"IF(E22=4,TRUE,FALSE)","v":false}]
[null,null,null,null,null,{"$f":"IF(E22=5,TRUE,FALSE)","v":false}]
[null,null,null,null,null,{"$f":"IF(E22=6,TRUE,FALSE)","v":false}]
[null,"实现韧性最大化的措施","责任机构","时间线"]
[]
[]
[null,"1.1.3 - 战略规划复审",null,null,null,null,"1.1.3"]
[null,"问题","注释"]
[]
[null,"测评尺度","请提供核查方法（解释说明及证据）"]
[null,null,null,null,null,{"$f":"IF(E35=1,TRUE,FALSE)","v":false}]
[null,null,null,null,null,{"$f":"IF(E35=2,TRUE,FALSE)","v":false}]
[null,null,null,null,null,{"$f":"IF(E35=3,TRUE,FALSE)","v":false}]
[null,null,null,null,null,{"$f":"IF(E35=4,TRUE,FALSE)","v":false}]
[null,null,null,null,null,{"$f":"IF(E35=5,TRUE,FALSE)","v":false}]
[null,null,null,null,null,{"$f":"IF(E35=6,TRUE,FALSE)","v":false}]
[null,"实现韧性最大化的措施","责任机构","时间线"]
[]
[]
[null,"1.2 - 组织、协调和参与 ",null,null,null,null,"1.2"]
[]
[null,"1.2.1 - 灾前计划和准备",null,null,null,null,"1.2.1"]
[null,"问题","注释"]
[]
[null,"测评尺度","请提供核查方法（解释说明及证据）"]
[null,null,null,null,null,{"$f":"IF(E50=1,TRUE,FALSE)","v":false}]
[null,null,null,null,null,{"$f":"IF(E50=2,TRUE,FALSE)","v":false}]
[null,null,null,null,null,{"$f":"IF(E50=3,TRUE,FALSE)","v":false}]
[null,null,null,null,null,{"$f":"IF(E50=4,TRUE,FALSE)","v":false}]
[null,null,null,null,null,{"$f":"IF(E50=5,TRUE,FALSE)","v":false}]
[null,null,null,null,null,{"$f":"IF(E50=6,TRUE,FALSE)","v":false}]
[null,"实现韧性最大化的措施","责任机构","时间线"]
[]
[]
[null,"1.2.2 - 灾害响应的协调",null,null,null,null,"1.2.2"]
[null,"问题","注释"]
[]
[null,"测评尺度","请提供核查方法（解释说明及证据）"]
[null,null,null,null,null,{"$f":"IF(E63=1,TRUE,FALSE)","v":false}]
[null,null,null,null,null,{"$f":"IF(E63=2,TRUE,FALSE)","v":false}]
[null,null,null,null,null,{"$f":"IF(E63=3,TRUE,FALSE)","v":false}]
[null,null,null,null,null,{"$f":"IF(E63=4,TRUE,FALSE)","v":false}]
[null,null,null,null,null,{"$f":"IF(E63=5,TRUE,FALSE)","v":false}]
[null,null,null,null,null,{"$f":"IF(E63=6,TRUE,FALSE)","v":false}]
[null,"实现韧性最大化的措施","责任机构","时间线"]
[]
[]
[null,"1.2.3 - 城市资源与组织管理、协调和参与",null,null,null,null,"1.2.3"]
[null,"问题","注释"]
[]
[null,"测评尺度","请提供核查方法（解释说明及证据）"]
[null,null,null,null,null,{"$f":"IF(E76=1,TRUE,FALSE)","v":false}]
[null,null,null,null,null,{"$f":"IF(E76=2,TRUE,FALSE)","v":false}]
[null,null,null,null,null,{"$f":"IF(E76=3,TRUE,FALSE)","v":false}]
[null,null,null,null,null,{"$f":"IF(E76=4,TRUE,FALSE)","v":false}]
[null,null,null,null,null,{"$f":"IF(E76=5,TRUE,FALSE)","v":false}]
[null,null,null,null,null,{"$f":"IF(E76=6,TRUE,FALSE)","v":false}]
[null,"实现韧性最大化的措施","责任机构","时间线"]
[]
[]
[null,"1.2.4 - 实物出资的确认",null,null,null,null,"1.2.4"]
[null,"问题","注释"]
[]
[null,"测评尺度","请提供核查方法（解释说明及证据）"]
[null,null,null,null,null,{"$f":"IF(E89=1,TRUE,FALSE)","v":false}]
[null,null,null,null,null,{"$f":"IF(E89=2,TRUE,FALSE)","v":false}]
[null,null,null,null,null,{"$f":"IF(E89=3,TRUE,FALSE)","v":false}]
[null,null,null,null,null,{"$f":"IF(E89=4,TRUE,FALSE)","v":false}]
[null,null,null,null,null,{"$f":"IF(E89=5,TRUE,FALSE)","v":false}]
[null,null,null,null,null,{"$f":"IF(E89=6,TRUE,FALSE)","v":false}]
[null,"实现韧性最大化的措施","责任机构","时间线"]
[]
[]
[null,"1.3 - 整合",null,null,null,null,"1.3"]
[]
[null,"1.3.1 -  城市灾害韧性与其他倡议的整合",null,null,null,null,"1.3.1"]
[null,"问题","注释"]
[]
[null,"测评尺度","请提供核查方法（解释说明及证据）"]
[null,null,null,null,null,{"$f":"IF(E104=1,TRUE,FALSE)","v":false}]
[null,null,null,null,null,{"$f":"IF(E104=2,TRUE,FALSE)","v":false}]
[null,null,null,null,null,{"$f":"IF(E104=3,TRUE,FALSE)","v":false}]
[null,null,null,null,null,{"$f":"IF(E104=4,TRUE,FALSE)","v":false}]
[null,null,null,null,null,{"$f":"IF(E104=5,TRUE,FALSE)","v":false}]
[null,null,null,null,null,{"$f":"IF(E104=6,TRUE,FALSE)","v":false}]
[null,"实现韧性最大化的措施","责任机构","时间线"]
[]
[]
[null,"1.4 - 数据采集、发布和共享",null,null,null,null,"1.4"]
[]
[null,"1.4.1 - 与参与城市韧性建设的相关组织分享城市韧性状况的程度",null,null,null,null,"1.4.1"]
[null,"问题","注释"]
[]
[null,"测评尺度","‘请提供核查方法（解释说明及证据）"]
[null,null,null,null,null,{"$f":"IF(E119=1,TRUE,FALSE)","v":false}]
[null,null,null,null,null,{"$f":"IF(E119=2,TRUE,FALSE)","v":false}]
[null,null,null,null,null,{"$f":"IF(E119=3,TRUE,FALSE)","v":false}]
[null,null,null,null,null,{"$f":"IF(E119=4,TRUE,FALSE)","v":false}]
[null,null,null,null,null,{"$f":"IF(E119=5,TRUE,FALSE)","v":false}]
[null,null,null,null,null,{"$f":"IF(E119=6,TRUE,FALSE)","v":false}]
[null,"实现韧性最大化的措施","责任机构","时间线"]

{"sheet":"E02","index":4,"n_rows":88,"n_cols":7,"rows_kept":88,"cut":false,"hidden":false,"merged":[[50,2,50,3],[5,2,5,3],[6,2,6,3],[7,2,7,3],[20,2,20,3],[21,2,21,3],[22,2,22,3],[8,2,13,3],[23,2,28,3],[36,2,41,3],[33,2,33,3],[34,2,34,3],[35,2,35,3],[48,2,48,3],[49,2,49,3],[51,2,56,3],[66,2,71,3],[81,2,86,3],[63,2,63,3],[64,2,64,3],[65,2,65,3],[78,2,78,3],[79,2,79,3],[80,2,80,3]]}
[]
[]
[null,"2.1 -  风险评估",null,null,null,null,"2.1"]
[]
[null,"2.1.1 - 关于城市面临的风险及其发生概率的了解",null,null,null,null,"2.1.1"]
[null,"问题","注释"]
[]
[null,"测评尺度","请提供核查方法（解释说明及证据）"]
[null,null,null,null,null,{"$f":"IF(E9=1,TRUE,FALSE)","v":false}]
[null,null,null,null,null,{"$f":"IF(E9=2,TRUE,FALSE)","v":false}]
[null,null,null,null,null,{"$f":"IF(E9=3,TRUE,FALSE)","v":false}]
[null,null,null,null,null,{"$f":"IF(E9=4,TRUE,FALSE)","v":false}]
[null,null,null,null,null,{"$f":"IF(E9=5,TRUE,FALSE)","v":false}]
[null,null,null,null,null,{"$f":"IF(E9=6,TRUE,FALSE)","v":false}]
[null,"实现韧性最大化的措施","责任机构","时间线"]
[]
[]
[null,"2.2 - 对风险暴露及其后果的认识",null,null,null,null,"2.2"]
[]
[null,"2.2.1 - 关于风险暴露脆弱性",null,null,null,null,"2.2.1"]
[null,"问题","注释"]
[]
[null,"测评尺度","请提供核查方法（解释说明及证据）"]
[null,null,null,null,null,{"$f":"IF(E24=1,TRUE,FALSE)","v":false}]
[null,null,null,null,null,{"$f":"IF(E24=2,TRUE,FALSE)","v":false}]
[null,null,null,null,null,{"$f":"IF(E24=3,TRUE,FALSE)","v":false}]
[null,null,null,null,null,{"$f":"IF(E24=4,TRUE,FALSE)","v":false}]
[null,null,null,null,null,{"$f":"IF(E24=5,TRUE,FALSE)","v":false}]
[null,null,null,null,null,{"$f":"IF(E24=6,TRUE,FALSE)","v":false}]
[null,"实现韧性最大化的措施","责任机构","时间线"]
[]
[]
[null,"2.2.2 - 破坏与损失评估",null,null,null,null,"2.2.2"]
[null,"问题","注释"]
[]
[null,"测评尺度","请提供核查方法（解释说明及证据）"]
[null,null,null,null,null,{"$f":"IF(E37=1,TRUE,FALSE)","v":false}]
[null,null,null,null,null,{"$f":"IF(E37=2,TRUE,FALSE)","v":false}]
[null,null,null,null,null,{"$f":"IF(E37=3,TRUE,FALSE)","v":false}]
[null,null,null,null,null,{"$f":"IF(E37=4,TRUE,FALSE)","v":false}]
[null,null,null,null,null,{"$f":"IF(E37=5,TRUE,FALSE)","v":false}]
[null,null,null,null,null,{"$f":"IF(E37=6,TRUE,FALSE)","v":false}]
[null,"实现韧性最大化的措施","责任机构","时间线"]
[]
[]
[null,"2.3 - 连锁影响或相互依赖性",null,null,null,null,"2.3"]
[]
[null,"2.3.1 - 对重要资产及其相互关联的了解",null,null,null,null,"2.3.1"]
[null,"问题","注释"]
[]
[null,"测评尺度","请提供核查方法（解释说明及证据）"]
[null,null,null,null,null,{"$f":"IF(E52=1,TRUE,FALSE)","v":false}]
[null,null,null,null,null,{"$f":"IF(E52=2,TRUE,FALSE)","v":false}]
[null,null,null,null,null,{"$f":"IF(E52=3,TRUE,FALSE)","v":false}]
[null,null,null,null,null,{"$f":"IF(E52=4,TRUE,FALSE)","v":false}]
[null,null,null,null,null,{"$f":"IF(E52=5,TRUE,FALSE)","v":false}]
[null,null,null,null,null,{"$f":"IF(E52=6,TRUE,FALSE)","v":false}]
[null,"实现韧性最大化的措施","责任机构","时间线"]
[]
[]
[null,"2.4 - 灾害地图",null,null,null,null,"2.4"]
[]
[null,"2.4.1 - 灾害地图",null,null,null,null,"2.4.1"]
[null,"问题","注释"]
[]
[null,"测评尺度","请提供核查方法（解释说明及证据）"]
[null,null,null,null,null,{"$f":"IF(E67=1,TRUE,FALSE)","v":false}]
[null,null,null,null,null,{"$f":"IF(E67=2,TRUE,FALSE)","v":false}]
[null,null,null,null,null,{"$f":"IF(E67=3,TRUE,FALSE)","v":false}]
[null,null,null,null,null,{"$f":"IF(E67=4,TRUE,FALSE)","v":false}]
[null,null,null,null,null,{"$f":"IF(E67=5,TRUE,FALSE)","v":false}]
[null,null,null,null,null,{"$f":"IF(E67=6,TRUE,FALSE)","v":false}]
[null,"实现韧性最大化的措施","责任机构","时间线"]
[]
[]
[null,"2.5 - 灾害场景，风险，脆弱性和暴露（于灾害风险）的信息更新",null,null,null,null,"2.5"]
[]
[null,"2.5.1 - 更新流程",null,null,null,null,"2.5.1"]
[null,"问题","注释"]
[]
[null,"测评尺度","请提供核查方法（解释说明及证据）"]
[null,null,null,null,null,{"$f":"IF(E82=1,TRUE,FALSE)","v":false}]
[null,null,null,null,null,{"$f":"IF(E82=2,TRUE,FALSE)","v":false}]
[null,null,null,null,null,{"$f":"IF(E82=3,TRUE,FALSE)","v":false}]
[null,null,null,null,null,{"$f":"IF(E82=4,TRUE,FALSE)","v":false}]
[null,null,null,null,null,{"$f":"IF(E82=5,TRUE,FALSE)","v":false}]
[null,null,null,null,null,{"$f":"IF(E82=6,TRUE,FALSE)","v":false}]
[null,"实现韧性最大化的措施","责任机构","时间线"]

{"sheet":"E03","index":5,"n_rows":138,"n_cols":7,"rows_kept":138,"cut":false,"hidden":false,"merged":[[21,2,21,3],[4,1,4,3],[5,2,5,3],[6,2,6,3],[7,2,7,3],[20,2,20,3],[8,2,13,3],[60,2,60,3],[22,2,22,3],[32,1,32,3],[33,2,33,3],[34,2,34,3],[35,2,35,3],[45,1,45,3],[46,2,46,3],[47,2,47,3],[48,2,48,3],[58,1,58,3],[59,2,59,3],[49,2,54,3],[36,2,41,3],[23,2,28,3],[114,1,114,3],[87,2,87,3],[88,2,88,3],[89,2,89,3],[61,2,61,3],[73,1,73,3],[74,2,74,3],[75,2,75,3],[76,2,76,3],[86,1,86,3],[62,2,67,3],[131,2,136,3],[118,2,123,3],[105,2,110,3],[90,2,95,3],[77,2,82,3],[130,2,130,3],[115,2,115,3],[116,2,116,3],[117,2,117,3],[127,1,127,3],[128,2,128,3],[129,2,129,3],[101,1,101,3],[102,2,102,3],[103,2,103,3],[104,2,104,3]]}
[]
[]
[null,"3.1 - 对城市减少灾害风险吸引新投资途径的认识",null,null,null,null,"3.1"]
[]
[null,"3.1.1 - 根据需要，认识并了解融资和资金筹措渠道。城市正在按要求积极寻求融资和进行资金筹措\n（注：如果资金充足，则可忽略此项测评）",null,null,null,null,"3.1.1"]
[null,"问题","注释"]
[]
[null,"测评尺度","请提供核查方法（解释说明及证据）"]
[null,null,null,null,null,{"$f":"IF(E9=1,TRUE,FALSE)","v":false}]
[null,null,null,null,null,{"$f":"IF(E9=2,TRUE,FALSE)","v":false}]
[null,null,null,null,null,{"$f":"IF(E9=3,TRUE,FALSE)","v":false}]
[null,null,null,null,null,{"$f":"IF(E9=4,TRUE,FALSE)","v":false}]
[null,null,null,null,null,{"$f":"IF(E9=5,TRUE,FALSE)","v":false}]
[null,null,null,null,null,{"$f":"IF(E9=6,TRUE,FALSE)","v":false}]
[null,"实现韧性最大化的措施","责任机构","时间线"]
[]
[]
[null,"3.2 - 城市财政计划有韧性预算，包括应急资金",null,null,null,null,"3.2"]
[]
[null,"3.2.1 -确保灾害韧性所有必要行动的充分的财政计划",null,null,null,null,"3.2.1"]
[null,"问题","注释"]
[]
[null,"测评尺度","请提供核查方法（解释说明及证据）"]
[null,null,null,null,null,{"$f":"IF(E24=1,TRUE,FALSE)","v":false}]
[null,null,null,null,null,{"$f":"IF(E24=2,TRUE,FALSE)","v":false}]
[null,null,null,null,null,{"$f":"IF(E24=3,TRUE,FALSE)","v":false}]
[null,null,null,null,null,{"$f":"IF(E24=4,TRUE,FALSE)","v":false}]
[null,null,null,null,null,{"$f":"IF(E24=5,TRUE,FALSE)","v":false}]
[null,null,null,null,null,{"$f":"IF(E24=6,TRUE,FALSE)","v":false}]
[null,"实现韧性最大化的措施","责任机构","时间线"]
[]
[]
[null,"3.2.2 - 为长期工程和其他用于处理要素2和8中确定的情景和关键资产的计划提供资金",null,null,null,null,"3.2.2"]
[null,"问题","注释"]
[]
[null,"测评尺度","请提供核查方法（解释说明及证据）"]
[null,null,null,null,null,{"$f":"IF(E37=1,TRUE,FALSE)","v":false}]
[null,null,null,null,null,{"$f":"IF(E37=2,TRUE,FALSE)","v":false}]
[null,null,null,null,null,{"$f":"IF(E37=3,TRUE,FALSE)","v":false}]
[null,null,null,null,null,{"$f":"IF(E37=4,TRUE,FALSE)","v":false}]
[null,null,null,null,null,{"$f":"IF(E37=5,TRUE,FALSE)","v":false}]
[null,null,null,null,null,{"$f":"IF(E37=6,TRUE,FALSE)","v":false}]
[null,"实现韧性最大化的措施","责任机构","时间线"]
[]
[]
[null,"3.2.3 - 运营资金满足所有灾害韧性相关活动的开支",null,null,null,null,"3.2.3"]
[null,"问题","注释"]
[]
[null,"测评尺度","请提供核查方法（解释说明及证据）"]
[null,null,null,null,null,{"$f":"IF(E50=1,TRUE,FALSE)","v":false}]
[null,null,null,null,null,{"$f":"IF(E50=2,TRUE,FALSE)","v":false}]
[null,null,null,null,null,{"$f":"IF(E50=3,TRUE,FALSE)","v":false}]
[null,null,null,null,null,{"$f":"IF(E50=4,TRUE,FALSE)","v":false}]
[null,null,null,null,null,{"$f":"IF(E50=5,TRUE,FALSE)","v":false}]
[null,null,null,null,null,{"$f":"IF(E50=6,TRUE,FALSE)","v":false}]
[null,"实现韧性最大化的措施","责任机构","时间线"]
[]
[]
[null,"3.2.4 - 灾后重建的应急基金（也被称为雨天基金）",null,null,null,null,"3.2.4"]
[null,"问题","注释"]
[]
[null,"测评尺度","请提供核查方法（解释说明及证据）"]
[null,null,null,null,null,{"$f":"IF(E63=1,TRUE,FALSE)","v":false}]
[null,null,null,null,null,{"$f":"IF(E63=2,TRUE,FALSE)","v":false}]
[null,null,null,null,null,{"$f":"IF(E63=3,TRUE,FALSE)","v":false}]
[null,null,null,null,null,{"$f":"IF(E63=4,TRUE,FALSE)","v":false}]
[null,null,null,null,null,{"$f":"IF(E63=5,TRUE,FALSE)","v":false}]
[null,null,null,null,null,{"$f":"IF(E63=6,TRUE,FALSE)","v":false}]
[null,"实现韧性最大化的措施","责任机构","时间线"]
[]
[]
[null,"3.3 - 保险",null,null,null,null,"3.3"]
[]
[null,"3.3.1 - 家庭保险范围",null,null,null,null,"3.3.1"]
[null,"问题","注释"]
[]
[null,"测评尺度","请提供核查方法（解释说明及证据）"]
[null,null,null,null,null,{"$f":"IF(E78=1,TRUE,FALSE)","v":false}]
[null,null,null,null,null,{"$f":"IF(E78=2,TRUE,FALSE)","v":false}]
[null,null,null,null,null,{"$f":"IF(E78=3,TRUE,FALSE)","v":false}]
[null,null,null,null,null,{"$f":"IF(E78=4,TRUE,FALSE)","v":false}]
[null,null,null,null,null,{"$f":"IF(E78=5,TRUE,FALSE)","v":false}]
[null,null,null,null,null,{"$f":"IF(E78=6,TRUE,FALSE)","v":false}]
[null,"实现韧性最大化的措施","责任机构","时间线"]
[]
[]
[null,"3.3.2 - 非家庭保险范围",null,null,null,null,"3.3.2"]
[null,"问题","注释"]
[]
[null,"测评尺度","请提供核查方法（解释说明及证据）"]
[null,null,null,null,null,{"$f":"IF(E91=1,TRUE,FALSE)","v":false}]
[null,null,null,null,null,{"$f":"IF(E91=2,TRUE,FALSE)","v":false}]
[null,null,null,null,null,{"$f":"IF(E91=3,TRUE,FALSE)","v":false}]
[null,null,null,null,null,{"$f":"IF(E91=4,TRUE,FALSE)","v":false}]
[null,null,null,null,null,{"$f":"IF(E91=5,TRUE,FALSE)","v":false}]
[null,null,null,null,null,{"$f":"IF(E91=6,TRUE,FALSE)","v":false}]
[null,"实现韧性最大化的措施","责任机构","时间线"]
[]
[]
[null,"3.4 - 对企业，社区组织和公民的激励措施和融资计划",null,null,null,null,"3.4"]
[]
[null,"3.4.1 - 鼓励企业组织提高灾害韧性 – 灾害计划，场所等",null,null,null,null,"3.4.1"]
[null,"问题","注释"]
[]
[null,"测评尺度","请提供核查方法（解释说明及证据）"]
[null,null,null,null,null,{"$f":"IF(E106=1,TRUE,FALSE)","v":false}]
[null,null,null,null,null,{"$f":"IF(E106=2,TRUE,FALSE)","v":false}]
[null,null,null,null,null,{"$f":"IF(E106=3,TRUE,FALSE)","v":false}]
[null,null,null,null,null,{"$f":"IF(E106=4,TRUE,FALSE)","v":false}]
[null,null,null,null,null,{"$f":"IF(E106=5,TRUE,FALSE)","v":false}]
[null,null,null,null,null,{"$f":"IF(E106=6,TRUE,FALSE)","v":false}]
[null,"实现韧性最大化的措施","责任机构","时间线"]
[]
[]
[null,"3.4.2 - 鼓励非营利组织提高灾害韧性 - 灾害计划，场所等",null,null,null,null,"3.4.2"]
[null,"问题","注释"]
[]
[null,"测评尺度","请提供核查方法（解释说明及证据）"]
[null,null,null,null,null,{"$f":"IF(E119=1,TRUE,FALSE)","v":false}]
[null,null,null,null,null,{"$f":"IF(E119=2,TRUE,FALSE)","v":false}]
[null,null,null,null,null,{"$f":"IF(E119=3,TRUE,FALSE)","v":false}]
[null,null,null,null,null,{"$f":"IF(E119=4,TRUE,FALSE)","v":false}]
[null,null,null,null,null,{"$f":"IF(E119=5,TRUE,FALSE)","v":false}]
[null,null,null,null,null,{"$f":"IF(E119=6,TRUE,FALSE)","v":false}]
[null,"实现韧性最大化的措施","责任机构","时间线"]
[]
[]
[null,"3.4.3 - 鼓励房产拥有者提高灾害韧性 - 灾害计划，场所等",null,null,null,null,"3.4.3"]
[null,"问题","注释"]
[]
[null,"测评尺度","请提供核查方法（解释说明及证据）"]
[null,null,null,null,null,{"$f":"IF(E132=1,TRUE,FALSE)","v":false}]
[null,null,null,null,null,{"$f":"IF(E132=2,TRUE,FALSE)","v":false}]
[null,null,null,null,null,{"$f":"IF(E132=3,TRUE,FALSE)","v":false}]
[null,null,null,null,null,{"$f":"IF(E132=4,TRUE,FALSE)","v":false}]
[null,null,null,null,null,{"$f":"IF(E132=5,TRUE,FALSE)","v":false}]
[null,null,null,null,null,{"$f":"IF(E132=6,TRUE,FALSE)","v":false}]
[null,"实现韧性最大化的措施","责任机构","时间线"]

{"sheet":"E04","index":6,"n_rows":138,"n_cols":7,"rows_kept":138,"cut":false,"hidden":false,"merged":[[131,2,136,3],[118,2,123,3],[103,2,108,3],[90,2,95,3],[77,2,82,3],[100,2,100,3],[99,1,99,3],[127,1,127,3],[128,2,128,3],[129,2,129,3],[130,2,130,3],[101,2,101,3],[102,2,102,3],[114,1,114,3],[115,2,115,3],[116,2,116,3],[18,2,18,3],[4,1,4,3],[5,2,5,3],[6,2,6,3],[7,2,7,3],[17,1,17,3],[8,2,13,3],[59,2,59,3],[19,2,19,3],[20,2,20,3],[30,1,30,3],[31,2,31,3],[32,2,32,3],[33,2,33,3],[44,2,44,3],[45,2,45,3],[46,2,46,3],[58,1,58,3],[47,2,52,3],[34,2,39,3],[21,2,26,3],[43,1,43,2],[60,2,60,3],[61,2,61,3],[73,1,73,3],[74,2,74,3],[75,2,75,3],[62,2,67,3],[117,2,117,3],[76,2,76,3],[86,1,86,3],[87,2,87,3],[88,2,88,3],[89,2,89,3]]}
[]
[]
[null,"4.1 -  土地利用区划",null,null,null,null,"4.1"]
[]
[null,"4.1.1 -  潜在的人口搬迁",null,null,null,null,"4.1.1"]
[null,"问题","注释"]
[]
[null,"测评尺度","请提供核查方法（解释说明及证据）"]
[null,null,null,null,null,{"$f":"IF(E9=1,TRUE,FALSE)","v":false}]
[null,null,null,null,null,{"$f":"IF(E9=2,TRUE,FALSE)","v":false}]
[null,null,null,null,null,{"$f":"IF(E9=3,TRUE,FALSE)","v":false}]
[null,null,null,null,null,{"$f":"IF(E9=4,TRUE,FALSE)","v":false}]
[null,null,null,null,null,{"$f":"IF(E9=5,TRUE,FALSE)","v":false}]
[null,null,null,null,null,{"$f":"IF(E9=6,TRUE,FALSE)","v":false}]
[null,"实现韧性最大化的措施","责任机构","时间线"]
[]
[]
[null,"4.1.2 - 受威胁的经济活动",null,null,null,null,"4.1.2"]
[null,"问题","注释"]
[]
[null,"测评尺度","请提供核查方法（解释说明及证据）"]
[null,null,null,null,null,{"$f":"IF(E22=1,TRUE,FALSE)","v":false}]
[null,null,null,null,null,{"$f":"IF(E22=2,TRUE,FALSE)","v":false}]
[null,null,null,null,null,{"$f":"IF(E22=3,TRUE,FALSE)","v":false}]
[null,null,null,null,null,{"$f":"IF(E22=4,TRUE,FALSE)","v":false}]
[null,null,null,null,null,{"$f":"IF(E22=5,TRUE,FALSE)","v":false}]
[null,null,null,null,null,{"$f":"IF(E22=6,TRUE,FALSE)","v":false}]
[null,"实现韧性最大化的措施","责任机构","时间线"]
[]
[]
[null,"4.1.2.1 - 面临风险的经济活动",null,null,null,null,"4.1.2.1"]
[null,"问题","注释"]
[]
[null,"测评尺度","请提供核查方法（解释说明及证据）"]
[null,null,null,null,null,{"$f":"IF(E35=1,TRUE,FALSE)","v":false}]
[null,null,null,null,null,{"$f":"IF(E35=2,TRUE,FALSE)","v":false}]
[null,null,null,null,null,{"$f":"IF(E35=3,TRUE,FALSE)","v":false}]
[null,null,null,null,null,{"$f":"IF(E35=4,TRUE,FALSE)","v":false}]
[null,null,null,null,null,{"$f":"IF(E35=5,TRUE,FALSE)","v":false}]
[null,null,null,null,null,{"$f":"IF(E35=6,TRUE,FALSE)","v":false}]
[null,"实现韧性最大化的措施","责任机构","时间线"]
[]
[]
[null,"4.1.3 - 面临风险的农业用地",null,null,null,null,"4.1.3"]
[null,"问题","注释"]
[]
[null,"测评尺度","请提供核查方法（解释说明及证据）"]
[null,null,null,null,null,{"$f":"IF(E48=1,TRUE,FALSE)","v":false}]
[null,null,null,null,null,{"$f":"IF(E48=2,TRUE,FALSE)","v":false}]
[null,null,null,null,null,{"$f":"IF(E48=3,TRUE,FALSE)","v":false}]
[null,null,null,null,null,{"$f":"IF(E48=4,TRUE,FALSE)","v":false}]
[null,null,null,null,null,{"$f":"IF(E48=5,TRUE,FALSE)","v":false}]
[null,null,null,null,null,{"$f":"IF(E48=6,TRUE,FALSE)","v":false}]
[null,"实现韧性最大化的措施","责任机构","时间线"]
[]
[]
[null,"4.2 - 新城镇开发",null,null,null,null,"4.2"]
[]
[null,"4.2.1 - 新城镇开发",null,null,null,null,"4.2.1"]
[null,"问题","注释"]
[]
[null,"测评尺度","请提供核查方法（解释说明及证据）"]
[null,null,null,null,null,{"$f":"IF(E63=1,TRUE,FALSE)","v":false}]
[null,null,null,null,null,{"$f":"IF(E63=2,TRUE,FALSE)","v":false}]
[null,null,null,null,null,{"$f":"IF(E63=3,TRUE,FALSE)","v":false}]
[null,null,null,null,null,{"$f":"IF(E63=4,TRUE,FALSE)","v":false}]
[null,null,null,null,null,{"$f":"IF(E63=5,TRUE,FALSE)","v":false}]
[null,null,null,null,null,{"$f":"IF(E63=6,TRUE,FALSE)","v":false}]
[null,"实现韧性最大化的措施","责任机构","时间线"]
[]
[]
[null,"4.3 - 建造规范及标准",null,null,null,null,"4.3"]
[]
[null,"4.3.1 - 专为应对要素2中已识别的风险而制定的建造规范",null,null,null,null,"4.3.1"]
[null,"问题","注释"]
[]
[null,"测评尺度","请提供核查方法（解释说明及证据）"]
[null,null,null,null,null,{"$f":"IF(E78=1,TRUE,FALSE)","v":false}]
[null,null,null,null,null,{"$f":"IF(E78=2,TRUE,FALSE)","v":false}]
[null,null,null,null,null,{"$f":"IF(E78=3,TRUE,FALSE)","v":false}]
[null,null,null,null,null,{"$f":"IF(E78=4,TRUE,FALSE)","v":false}]
[null,null,null,null,null,{"$f":"IF(E78=5,TRUE,FALSE)","v":false}]
[null,null,null,null,null,{"$f":"IF(E78=6,TRUE,FALSE)","v":false}]
[null,"实现韧性最大化的措施","责任机构","时间线"]
[]
[]
[null,"4.3.2 - 建造规范的更新",null,null,null,null,"4.3.2"]
[null,"问题","注释"]
[]
[null,"测评尺度","请提供核查方法（解释说明及证据）"]
[null,null,null,null,null,{"$f":"IF(E91=1,TRUE,FALSE)","v":false}]
[null,null,null,null,null,{"$f":"IF(E91=2,TRUE,FALSE)","v":false}]
[null,null,null,null,null,{"$f":"IF(E91=3,TRUE,FALSE)","v":false}]
[null,null,null,null,null,{"$f":"IF(E91=4,TRUE,FALSE)","v":false}]
[null,null,null,null,null,{"$f":"IF(E91=5,TRUE,FALSE)","v":false}]
[null,null,null,null,null,{"$f":"IF(E91=6,TRUE,FALSE)","v":false}]
[null,"实现韧性最大化的措施","责任机构","时间线"]
[]
[]
[null,"4.3.3 - 可持续建筑设计标准",null,null,null,null,"4.3.3"]
[null,"问题","注释"]
[]
[null,"测评尺度","请提供核查方法（解释说明及证据）"]
[null,null,null,null,null,{"$f":"IF(E104=1,TRUE,FALSE)","v":false}]
[null,null,null,null,null,{"$f":"IF(E104=2,TRUE,FALSE)","v":false}]
[null,null,null,null,null,{"$f":"IF(E104=3,TRUE,FALSE)","v":false}]
[null,null,null,null,null,{"$f":"IF(E104=4,TRUE,FALSE)","v":false}]
[null,null,null,null,null,{"$f":"IF(E104=5,TRUE,FALSE)","v":false}]
[null,null,null,null,null,{"$f":"IF(E104=6,TRUE,FALSE)","v":false}]
[null,"实现韧性最大化的措施","责任机构","时间线"]
[]
[]
[null,"4.4 - 分区建筑规范和标准的运用",null,null,null,null,"4.4"]
[]
[null,"4.4.1 - 土地利用分区的运用",null,null,null,null,"4.4.1"]
[null,"问题","注释"]
[]
[null,"测评尺度","请提供核查方法（解释说明及证据）"]
[null,null,null,null,null,{"$f":"IF(E119=1,TRUE,FALSE)","v":false}]
[null,null,null,null,null,{"$f":"IF(E119=2,TRUE,FALSE)","v":false}]
[null,null,null,null,null,{"$f":"IF(E119=3,TRUE,FALSE)","v":false}]
[null,null,null,null,null,{"$f":"IF(E119=4,TRUE,FALSE)","v":false}]
[null,null,null,null,null,{"$f":"IF(E119=5,TRUE,FALSE)","v":false}]
[null,null,null,null,null,{"$f":"IF(E119=6,TRUE,FALSE)","v":false}]
[null,"实现韧性最大化的措施","责任机构","时间线"]
[]
[]
[null,"4.4.2 - 建造规范的运用",null,null,null,null,"4.4.2"]
[null,"问题","注释"]
[]
[null,"测评尺度","请提供核查方法（解释说明及证据）"]
[null,null,null,null,null,{"$f":"IF(E132=1,TRUE,FALSE)","v":false}]
[null,null,null,null,null,{"$f":"IF(E132=2,TRUE,FALSE)","v":false}]
[null,null,null,null,null,{"$f":"IF(E132=3,TRUE,FALSE)","v":false}]
[null,null,null,null,null,{"$f":"IF(E132=4,TRUE,FALSE)","v":false}]
[null,null,null,null,null,{"$f":"IF(E132=5,TRUE,FALSE)","v":false}]
[null,null,null,null,null,{"$f":"IF(E132=6,TRUE,FALSE)","v":false}]
[null,"实现韧性最大化的措施","责任机构","时间线"]

{"sheet":"E05","index":7,"n_rows":84,"n_cols":7,"rows_kept":84,"cut":false,"hidden":false,"merged":[[36,2,41,3],[49,2,54,3],[64,2,69,3],[77,2,82,3],[76,2,76,3],[45,1,45,3],[46,2,46,3],[47,2,47,3],[48,2,48,3],[60,1,60,3],[61,2,61,3],[62,2,62,3],[63,2,63,3],[73,1,73,3],[74,2,74,3],[75,2,75,3],[35,2,35,3],[4,1,4,3],[5,2,5,3],[6,2,6,3],[7,2,7,3],[17,1,17,3],[18,2,18,3],[19,2,19,3],[20,2,20,3],[32,1,32,3],[33,2,33,3],[34,2,34,3],[8,2,13,3],[21,2,26,3]]}
[]
[]
[null,"5.1 - 现有自然环境和生态系统健康",null,null,null,null,"5.1"]
[]
[null,"5.1.1 - 对生态系统服务在城市灾害韧性中作用的认识",null,null,null,null,"5.1.1"]
[null,"问题","注释"]
[]
[null,"测评尺度","请提供核查方法（解释说明及证据）"]
[null,null,null,null,null,{"$f":"IF(E9=1,TRUE,FALSE)","v":false}]
[null,null,null,null,null,{"$f":"IF(E9=2,TRUE,FALSE)","v":false}]
[null,null,null,null,null,{"$f":"IF(E9=3,TRUE,FALSE)","v":false}]
[null,null,null,null,null,{"$f":"IF(E9=4,TRUE,FALSE)","v":false}]
[null,null,null,null,null,{"$f":"IF(E9=5,TRUE,FALSE)","v":false}]
[null,null,null,null,null,{"$f":"IF(E9=6,TRUE,FALSE)","v":false}]
[null,"实现韧性最大化的措施","责任机构","时间线"]
[]
[]
[null,"5.1.2 - 生态系统健康",null,null,null,null,"5.1.2"]
[null,"问题","注释"]
[]
[null,"测评尺度","请提供核查方法（解释说明及证据）"]
[null,null,null,null,null,{"$f":"IF(E22=1,TRUE,FALSE)","v":false}]
[null,null,null,null,null,{"$f":"IF(E22=2,TRUE,FALSE)","v":false}]
[null,null,null,null,null,{"$f":"IF(E22=3,TRUE,FALSE)","v":false}]
[null,null,null,null,null,{"$f":"IF(E22=4,TRUE,FALSE)","v":false}]
[null,null,null,null,null,{"$f":"IF(E22=5,TRUE,FALSE)","v":false}]
[null,null,null,null,null,{"$f":"IF(E22=6,TRUE,FALSE)","v":false}]
[null,"实现韧性最大化的措施","责任机构","时间线"]
[]
[]
[null,"5.2 - 蓝、绿基础设施整合在城市政策和项目中",null,null,null,null,"5.2"]
[]
[null,"5.2.1 - 土地利用和其他政策对生态系统服务的影响",null,null,null,null,"5.2.1"]
[null,"问题","注释"]
[]
[null,"测评尺度","请提供核查方法（解释说明及证据）"]
[null,null,null,null,null,{"$f":"IF(E37=1,TRUE,FALSE)","v":false}]
[null,null,null,null,null,{"$f":"IF(E37=2,TRUE,FALSE)","v":false}]
[null,null,null,null,null,{"$f":"IF(E37=3,TRUE,FALSE)","v":false}]
[null,null,null,null,null,{"$f":"IF(E37=4,TRUE,FALSE)","v":false}]
[null,null,null,null,null,{"$f":"IF(E37=5,TRUE,FALSE)","v":false}]
[null,null,null,null,null,{"$f":"IF(E37=6,TRUE,FALSE)","v":false}]
[null,"实现韧性最大化的措施","责任机构","时间线"]
[]
[]
[null,"5.2.2 - 绿色和蓝色基础设施按规定在城市项目中实施",null,null,null,null,"5.2.2"]
[null,"问题","注释"]
[]
[null,"测评尺度","请提供核查方法（解释说明及证据）"]
[null,null,null,null,null,{"$f":"IF(E50=1,TRUE,FALSE)","v":false}]
[null,null,null,null,null,{"$f":"IF(E50=2,TRUE,FALSE)","v":false}]
[null,null,null,null,null,{"$f":"IF(E50=3,TRUE,FALSE)","v":false}]
[null,null,null,null,null,{"$f":"IF(E50=4,TRUE,FALSE)","v":false}]
[null,null,null,null,null,{"$f":"IF(E50=5,TRUE,FALSE)","v":false}]
[null,null,null,null,null,{"$f":"IF(E50=6,TRUE,FALSE)","v":false}]
[null,"实现韧性最大化的措施","责任机构","时间线"]
[]
[]
[null,"5.3 - 跨界环境问题",null,null,null,null,"5.3"]
[]
[null,"5.3.1 - 确定关键环境资产",null,null,null,null,"5.3.1"]
[null,"问题","注释"]
[]
[null,"测评尺度","请提供核查方法（解释说明及证据）"]
[null,null,null,null,null,{"$f":"IF(E65=1,TRUE,FALSE)","v":false}]
[null,null,null,null,null,{"$f":"IF(E65=2,TRUE,FALSE)","v":false}]
[null,null,null,null,null,{"$f":"IF(E65=3,TRUE,FALSE)","v":false}]
[null,null,null,null,null,{"$f":"IF(E65=4,TRUE,FALSE)","v":false}]
[null,null,null,null,null,{"$f":"IF(E65=5,TRUE,FALSE)","v":false}]
[null,null,null,null,null,{"$f":"IF(E65=6,TRUE,FALSE)","v":false}]
[null,"实现韧性最大化的措施","责任机构","时间线"]
[]
[]
[null,"5.3.2 - 跨界协议",null,null,null,null,"5.3.2"]
[null,"问题","注释"]
[]
[null,"测评尺度","请提供核查方法（解释说明及证据）"]
[null,null,null,null,null,{"$f":"IF(E78=1,TRUE,FALSE)","v":false}]
[null,null,null,null,null,{"$f":"IF(E78=2,TRUE,FALSE)","v":false}]
[null,null,null,null,null,{"$f":"IF(E78=3,TRUE,FALSE)","v":false}]
[null,null,null,null,null,{"$f":"IF(E78=4,TRUE,FALSE)","v":false}]
[null,null,null,null,null,{"$f":"IF(E78=5,TRUE,FALSE)","v":false}]
[null,null,null,null,null,{"$f":"IF(E78=6,TRUE,FALSE)","v":false}]
[null,"实现韧性最大化的措施","责任机构","时间线"]

{"sheet":"E06","index":8,"n_rows":181,"n_cols":7,"rows_kept":181,"cut":false,"hidden":false,"merged":[[18,2,18,3],[174,2,179,3],[159,2,164,3],[144,2,149,3],[131,2,136,3],[118,2,123,3],[103,2,108,3],[90,2,95,3],[75,2,80,3],[62,2,67,3],[47,2,52,3],[34,2,39,3],[21,2,26,3],[59,2,59,3],[19,2,19,3],[20,2,20,3],[4,1,4,3],[5,2,5,3],[6,2,6,3],[7,2,7,3],[17,1,17,3],[8,2,13,3],[30,1,30,3],[31,2,31,3],[32,2,32,3],[33,2,33,3],[43,1,43,3],[44,2,44,3],[45,2,45,3],[46,2,46,3],[58,1,58,3],[100,2,100,3],[60,2,60,3],[61,2,61,3],[71,1,71,3],[72,2,72,3],[73,2,73,3],[74,2,74,3],[86,1,86,3],[87,2,87,3],[88,2,88,3],[89,2,89,3],[99,1,99,3],[141,2,141,3],[101,2,101,3],[102,2,102,3],[114,1,114,3],[115,2,115,3],[116,2,116,3],[117,2,117,3],[127,1,127,3],[128,2,128,3],[129,2,129,3],[130,2,130,3],[140,1,140,3],[170,1,170,3],[171,2,171,3],[172,2,172,3],[173,2,173,3],[142,2,142,3],[143,2,143,3],[155,1,155,3],[156,2,156,3],[157,2,157,3],[158,2,158,3]]}
[]
[]
[null,"6.1 - 技能和经验",null,null,null,null,"6.1"]
[]
[null,"6.1.1 - 灾害韧性技能和经验的可获得性－风险识别、减缓、规划、响应和灾后恢复",null,null,null,null,"6.1.1"]
[null,"问题","注释"]
[]
[null,"测评尺度","请提供核查方法（解释说明及证据）"]
[null,null,null,null,null,{"$f":"IF(E9=1,TRUE,FALSE)","v":false}]
[null,null,null,null,null,{"$f":"IF(E9=2,TRUE,FALSE)","v":false}]
[null,null,null,null,null,{"$f":"IF(E9=3,TRUE,FALSE)","v":false}]
[null,null,null,null,null,{"$f":"IF(E9=4,TRUE,FALSE)","v":false}]
[null,null,null,null,null,{"$f":"IF(E9=5,TRUE,FALSE)","v":false}]
[null,null,null,null,null,{"$f":"IF(E9=6,TRUE,FALSE)","v":false}]
[null,"实现韧性最大化的措施","责任机构","时间线"]
[]
[]
[null,"6.1.2 - 与私营部门的联系",null,null,null,null,"6.1.2"]
[null,"问题","注释"]
[]
[null,"测评尺度","请提供核查方法（解释说明及证据）"]
[null,null,null,null,null,{"$f":"IF(E22=1,TRUE,FALSE)","v":false}]
[null,null,null,null,null,{"$f":"IF(E22=2,TRUE,FALSE)","v":false}]
[null,null,null,null,null,{"$f":"IF(E22=3,TRUE,FALSE)","v":false}]
[null,null,null,null,null,{"$f":"IF(E22=4,TRUE,FALSE)","v":false}]
[null,null,null,null,null,{"$f":"IF(E22=5,TRUE,FALSE)","v":false}]
[null,null,null,null,null,{"$f":"IF(E22=6,TRUE,FALSE)","v":false}]
[null,"实现韧性最大化的措施","责任机构","时间线"]
[]
[]
[null,"6.1.3 - 保险业的参与",null,null,null,null,"6.1.3"]
[null,"问题","注释"]
[]
[null,"测评尺度","请提供核查方法（解释说明及证据）"]
[null,null,null,null,null,{"$f":"IF(E35=1,TRUE,FALSE)","v":false}]
[null,null,null,null,null,{"$f":"IF(E35=2,TRUE,FALSE)","v":false}]
[null,null,null,null,null,{"$f":"IF(E35=3,TRUE,FALSE)","v":false}]
[null,null,null,null,null,{"$f":"IF(E35=4,TRUE,FALSE)","v":false}]
[null,null,null,null,null,{"$f":"IF(E35=5,TRUE,FALSE)","v":false}]
[null,null,null,null,null,{"$f":"IF(E35=6,TRUE,FALSE)","v":false}]
[null,"实现韧性最大化的措施","责任机构","时间线"]
[]
[]
[null,"6.1.4 - 与民间团体的联系",null,null,null,null,"6.1.4"]
[null,"问题","注释"]
[]
[null,"测评尺度","请提供核查方法（解释说明及证据）"]
[null,null,null,null,null,{"$f":"IF(E48=1,TRUE,FALSE)","v":false}]
[null,null,null,null,null,{"$f":"IF(E48=2,TRUE,FALSE)","v":false}]
[null,null,null,null,null,{"$f":"IF(E48=3,TRUE,FALSE)","v":false}]
[null,null,null,null,null,{"$f":"IF(E48=4,TRUE,FALSE)","v":false}]
[null,null,null,null,null,{"$f":"IF(E48=5,TRUE,FALSE)","v":false}]
[null,null,null,null,null,{"$f":"IF(E48=6,TRUE,FALSE)","v":false}]
[null,"实现韧性最大化的措施","责任机构","时间线"]
[]
[]
[null,"6.2 - 公众教育和意识",null,null,null,null,"6.2"]
[]
[null,"6.2.1 - 公众对教育和意识材料/信息的接触",null,null,null,null,"6.2.1"]
[null,"问题","注释"]
[]
[null,"测评尺度","请提供核查方法（解释说明及证据）"]
[null,null,null,null,null,{"$f":"IF(E63=1,TRUE,FALSE)","v":false}]
[null,null,null,null,null,{"$f":"IF(E63=2,TRUE,FALSE)","v":false}]
[null,null,null,null,null,{"$f":"IF(E63=3,TRUE,FALSE)","v":false}]
[null,null,null,null,null,{"$f":"IF(E63=4,TRUE,FALSE)","v":false}]
[null,null,null,null,null,{"$f":"IF(E63=5,TRUE,FALSE)","v":false}]
[null,null,null,null,null,{"$f":"IF(E63=6,TRUE,FALSE)","v":false}]
[null,"实现韧性最大化的措施","责任机构","时间线"]
[]
[]
[null,"6.2.1.1 - 公众对教育和意识材料/信息的接触",null,null,null,null,"6.2.1.1"]
[null,"问题","注释"]
[]
[null,"测评尺度","请提供核查方法（解释说明及证据）"]
[null,null,null,null,null,{"$f":"IF(E76=1,TRUE,FALSE)","v":false}]
[null,null,null,null,null,{"$f":"IF(E76=2,TRUE,FALSE)","v":false}]
[null,null,null,null,null,{"$f":"IF(E76=3,TRUE,FALSE)","v":false}]
[null,null,null,null,null,{"$f":"IF(E76=4,TRUE,FALSE)","v":false}]
[null,null,null,null,null,{"$f":"IF(E76=5,TRUE,FALSE)","v":false}]
[null,null,null,null,null,{"$f":"IF(E76=6,TRUE,FALSE)","v":false}]
[null,"实现韧性最大化的措施","责任机构","时间线"]
[]
[]
[null,"6.3 - 数据采集​​，发布和共享",null,null,null,null,"6.3"]
[]
[null,"6.3.1 - 与其它参与城市韧性的的机构共享关于城市韧性数据的程度",null,null,null,null,"6.3.1"]
[null,"问题","注释"]
[]
[null,"测评尺度","请提供核查方法（解释说明及证据）"]
[null,null,null,null,null,{"$f":"IF(E91=1,TRUE,FALSE)","v":false}]
[null,null,null,null,null,{"$f":"IF(E91=2,TRUE,FALSE)","v":false}]
[null,null,null,null,null,{"$f":"IF(E91=3,TRUE,FALSE)","v":false}]
[null,null,null,null,null,{"$f":"IF(E91=4,TRUE,FALSE)","v":false}]
[null,null,null,null,null,{"$f":"IF(E91=5,TRUE,FALSE)","v":false}]
[null,null,null,null,null,{"$f":"IF(E91=6,TRUE,FALSE)","v":false}]
[null,"实现韧性最大化的措施","责任机构","时间线"]
[]
[]
[null,"6.3.2 - 与社区组织和公众共享城市韧性状况数据的程度",null,null,null,null,"6.3.2"]
[null,"问题","注释"]
[]
[null,"测评尺度","请提供核查方法（解释说明及证据）"]
[null,null,null,null,null,{"$f":"IF(E104=1,TRUE,FALSE)","v":false}]
[null,null,null,null,null,{"$f":"IF(E104=2,TRUE,FALSE)","v":false}]
[null,null,null,null,null,{"$f":"IF(E104=3,TRUE,FALSE)","v":false}]
[null,null,null,null,null,{"$f":"IF(E104=4,TRUE,FALSE)","v":false}]
[null,null,null,null,null,{"$f":"IF(E104=5,TRUE,FALSE)","v":false}]
[null,null,null,null,null,{"$f":"IF(E104=6,TRUE,FALSE)","v":false}]
[null,"实现韧性最大化的措施","责任机构","时间线"]
[]
[]
[null,"6.4 - 提供培训",null,null,null,null,"6.4"]
[]
[null,"6.4.1 - 提供风险和韧性训练及实践",null,null,null,null,"6.4.1"]
[null,"问题","注释"]
[]
[null,"测评尺度","请提供核查方法（解释说明及证据）"]
[null,null,null,null,null,{"$f":"IF(E119=1,TRUE,FALSE)","v":false}]
[null,null,null,null,null,{"$f":"IF(E119=2,TRUE,FALSE)","v":false}]
[null,null,null,null,null,{"$f":"IF(E119=3,TRUE,FALSE)","v":false}]
[null,null,null,null,null,{"$f":"IF(E119=4,TRUE,FALSE)","v":false}]
[null,null,null,null,null,{"$f":"IF(E119=5,TRUE,FALSE)","v":false}]
[null,null,null,null,null,{"$f":"IF(E119=6,TRUE,FALSE)","v":false}]
[null,"实现韧性最大化的措施","责任机构","时间线"]
[]
[]
[null,"6.4.1.1 - 提供风险和韧性训练及实践（专业训练）",null,null,null,null,"6.4.1.1"]
[null,"问题","注释"]
[]
[null,"测评尺度","请提供核查方法（解释说明及证据）"]
[null,null,null,null,null,{"$f":"IF(E132=1,TRUE,FALSE)","v":false}]
[null,null,null,null,null,{"$f":"IF(E132=2,TRUE,FALSE)","v":false}]
[null,null,null,null,null,{"$f":"IF(E132=3,TRUE,FALSE)","v":false}]
[null,null,null,null,null,{"$f":"IF(E132=4,TRUE,FALSE)","v":false}]
[null,null,null,null,null,{"$f":"IF(E132=5,TRUE,FALSE)","v":false}]
[null,null,null,null,null,{"$f":"IF(E132=6,TRUE,FALSE)","v":false}]
[null,"实现韧性最大化的措施","责任机构","时间线"]
[]
[]
[null,"6.4.2 - 对相关培训系统／流程的更新",null,null,null,null,"6.4.2"]
[null,"问题","注释"]
[]
[null,"测评尺度","请提供核查方法（解释说明及证据）"]
[null,null,null,null,null,{"$f":"IF(E145=1,TRUE,FALSE)","v":false}]
[null,null,null,null,null,{"$f":"IF(E145=2,TRUE,FALSE)","v":false}]
[null,null,null,null,null,{"$f":"IF(E145=3,TRUE,FALSE)","v":false}]
[null,null,null,null,null,{"$f":"IF(E145=4,TRUE,FALSE)","v":false}]
[null,null,null,null,null,{"$f":"IF(E145=5,TRUE,FALSE)","v":false}]
[null,null,null,null,null,{"$f":"IF(E145=6,TRUE,FALSE)","v":false}]
[null,"实现韧性最大化的措施","责任机构","时间线"]
[]
[]
[null,"6.5 - 语言",null,null,null,null,"6.5"]
[]
[null,"6.5.1 - 城市内所有语言群体接受教育和训练的机会",null,null,null,null,"6.5.1"]
[null,"问题","注释"]
[]
[null,"测评尺度","请提供核查方法（解释说明及证据）"]
[null,null,null,null,null,{"$f":"IF(E160=1,TRUE,FALSE)","v":false}]
[null,null,null,null,null,{"$f":"IF(E160=2,TRUE,FALSE)","v":false}]
[null,null,null,null,null,{"$f":"IF(E160=3,TRUE,FALSE)","v":false}]
[null,null,null,null,null,{"$f":"IF(E160=4,TRUE,FALSE)","v":false}]
[null,null,null,null,null,{"$f":"IF(E160=5,TRUE,FALSE)","v":false}]
[null,null,null,null,null,{"$f":"IF(E160=6,TRUE,FALSE)","v":false}]
[null,"实现韧性最大化的措施","责任机构","时间线"]
[]
[]
[null,"6.6 - 向他人学习",null,null,null,null,"6.6"]
[]
[null,"6.6.1 - 努力向其他城市、省份和国家（及公司）学习如何提高韧性",null,null,null,null,"6.6.1"]
[null,"问题","注释"]
[]
[null,"测评尺度","请提供核查方法（解释说明及证据）"]
[null,null,null,null,null,{"$f":"IF(E175=1,TRUE,FALSE)","v":false}]
[null,null,null,null,null,{"$f":"IF(E175=2,TRUE,FALSE)","v":false}]
[null,null,null,null,null,{"$f":"IF(E175=3,TRUE,FALSE)","v":false}]
[null,null,null,null,null,{"$f":"IF(E175=4,TRUE,FALSE)","v":false}]
[null,null,null,null,null,{"$f":"IF(E175=5,TRUE,FALSE)","v":false}]
[null,null,null,null,null,{"$f":"IF(E175=6,TRUE,FALSE)","v":false}]
[null,"实现韧性最大化的措施","责任机构","时间线"]

{"sheet":"E07","index":9,"n_rows":139,"n_cols":7,"rows_kept":139,"cut":false,"hidden":false,"merged":[[18,2,18,3],[131,2,136,3],[118,2,123,3],[8,2,13,3],[21,2,26,3],[34,2,39,3],[49,2,54,3],[62,2,67,3],[77,2,82,3],[90,2,95,3],[105,2,110,3],[59,2,59,3],[19,2,19,3],[20,2,20,3],[30,1,30,3],[31,2,31,3],[4,1,4,3],[5,2,5,3],[6,2,6,3],[7,2,7,3],[17,1,17,3],[32,2,32,3],[33,2,33,3],[45,1,45,3],[46,2,46,3],[47,2,47,3],[48,2,48,3],[58,1,58,3],[102,2,102,3],[60,2,60,3],[61,2,61,3],[73,1,73,3],[74,2,74,3],[75,2,75,3],[76,2,76,3],[86,1,86,3],[87,2,87,3],[88,2,88,3],[89,2,89,3],[101,1,101,3],[127,1,127,3],[128,2,128,3],[129,2,129,3],[130,2,130,3],[103,2,103,3],[104,2,104,3],[114,1,114,3],[115,2,115,3],[116,2,116,3],[117,2,117,3]]}
[]
[]
[null,"7.1 - 社区组织或 “草根”组织",null,null,null,null,"7.1"]
[null,null,null,null,null,null,""]
[null,"7.1.1 - 社区组织或 “草根”组织在整个城市中的覆盖范围",null,null,null,null,"7.1.1"]
[null,"问题","注释",null,null,null,""]
[null,null,null,null,null,null,""]
[null,"测评尺度","请提供核查方法（解释说明及证据）",null,null,null,""]
[null,null,null,null,null,{"$f":"IF(E9=1,TRUE,FALSE)","v":false},""]
[null,null,null,null,null,{"$f":"IF(E9=2,TRUE,FALSE)","v":false},""]
[null,null,null,null,null,{"$f":"IF(E9=3,TRUE,FALSE)","v":false},""]
[null,null,null,null,null,{"$f":"IF(E9=4,TRUE,FALSE)","v":false},""]
[null,null,null,null,null,{"$f":"IF(E9=5,TRUE,FALSE)","v":false},""]
[null,null,null,null,null,{"$f":"IF(E9=6,TRUE,FALSE)","v":false},""]
[null,"实现韧性最大化的措施","责任机构","时间线",null,null,""]
[null,null,null,null,null,null,""]
[null,null,null,null,null,null,""]
[null,"7.1.2 - 社区网络的有效性",null,null,null,null,"7.1.2"]
[null,"问题","注释",null,null,null,""]
[null,null,null,null,null,null,""]
[null,"测评尺度","请提供核查方法（解释说明及证据）",null,null,null,""]
[null,null,null,null,null,{"$f":"IF(E22=1,TRUE,FALSE)","v":false},""]
[null,null,null,null,null,{"$f":"IF(E22=2,TRUE,FALSE)","v":false},""]
[null,null,null,null,null,{"$f":"IF(E22=3,TRUE,FALSE)","v":false},""]
[null,null,null,null,null,{"$f":"IF(E22=4,TRUE,FALSE)","v":false},""]
[null,null,null,null,null,{"$f":"IF(E22=5,TRUE,FALSE)","v":false},""]
[null,null,null,null,null,{"$f":"IF(E22=6,TRUE,FALSE)","v":false},""]
[null,"实现韧性最大化的措施","责任机构","时间线",null,null,""]
[null,null,null,null,null,null,""]
[null,null,null,null,null,null,""]
[null,"7.1.2.1 - 社区网络的有效性",null,null,null,null,"7.1.2.1"]
[null,"问题","注释",null,null,null,""]
[null,null,null,null,null,null,""]
[null,"测评尺度","请提供核查方法（解释说明及证据）",null,null,null,""]
[null,null,null,null,null,{"$f":"IF(E35=1,TRUE,FALSE)","v":false},""]
[null,null,null,null,null,{"$f":"IF(E35=2,TRUE,FALSE)","v":false},""]
[null,null,null,null,null,{"$f":"IF(E35=3,TRUE,FALSE)","v":false},""]
[null,null,null,null,null,{"$f":"IF(E35=4,TRUE,FALSE)","v":false},""]
[null,null,null,null,null,{"$f":"IF(E35=5,TRUE,FALSE)","v":false},""]
[null,null,null,null,null,{"$f":"IF(E35=6,TRUE,FALSE)","v":false},""]
[null,"实现韧性最大化的措施","责任机构","时间线",null,null,""]
[null,null,null,null,null,null,""]
[null,null,null,null,null,null,""]
[null,"7.2 - 社会网络",null,null,null,null,"7.2"]
[null,null,null,null,null,null,""]
[null,"7.2.1 - 社会连通性及社区的凝聚力",null,null,null,null,"7.2.1"]
[null,"问题","注释",null,null,null,""]
[null,null,null,null,null,null,""]
[null,"测评尺度","请提供核查方法（解释说明及证据）",null,null,null,""]
[null,null,null,null,null,{"$f":"IF(E50=1,TRUE,FALSE)","v":false},""]
[null,null,null,null,null,{"$f":"IF(E50=2,TRUE,FALSE)","v":false},""]
[null,null,null,null,null,{"$f":"IF(E50=3,TRUE,FALSE)","v":false},""]
[null,null,null,null,null,{"$f":"IF(E50=4,TRUE,FALSE)","v":false},""]
[null,null,null,null,null,{"$f":"IF(E50=5,TRUE,FALSE)","v":false},""]
[null,null,null,null,null,{"$f":"IF(E50=6,TRUE,FALSE)","v":false},""]
[null,"实现韧性最大化的措施","责任机构","时间线",null,null,""]
[null,null,null,null,null,null,""]
[null,null,null,null,null,null,""]
[null,"7.2.2 - 弱势群体的参与程度",null,null,null,null,"7.2.2"]
[null,"问题","注释",null,null,null,""]
[null,null,null,null,null,null,""]
[null,"测评尺度","请提供核查方法（解释说明及证据）",null,null,null,""]
[null,null,null,null,null,{"$f":"IF(E63=1,TRUE,FALSE)","v":false},""]
[null,null,null,null,null,{"$f":"IF(E63=2,TRUE,FALSE)","v":false},""]
[null,null,null,null,null,{"$f":"IF(E63=3,TRUE,FALSE)","v":false},""]
[null,null,null,null,null,{"$f":"IF(E63=4,TRUE,FALSE)","v":false},""]
[null,null,null,null,null,{"$f":"IF(E63=5,TRUE,FALSE)","v":false},""]
[null,null,null,null,null,{"$f":"IF(E63=6,TRUE,FALSE)","v":false},""]
[null,"实现韧性最大化的措施","责任机构","时间线",null,null,""]
[null,null,null,null,null,null,""]
[null,null,null,null,null,null,""]
[null,"7.3 - 私营企业/雇主",null,null,null,null,"7.3"]
[null,null,null,null,null,null,""]
[null,"7.3.1 - 雇主充当雇员韧性信息渠道的程度 ",null,null,null,null,"7.3.1"]
[null,"问题","注释",null,null,null,""]
[null,null,null,null,null,null,""]
[null,"测评尺度","请提供核查方法（解释说明及证据）",null,null,null,""]
[null,null,null,null,null,{"$f":"IF(E78=1,TRUE,FALSE)","v":false},""]
[null,null,null,null,null,{"$f":"IF(E78=2,TRUE,FALSE)","v":false},""]
[null,null,null,null,null,{"$f":"IF(E78=3,TRUE,FALSE)","v":false},""]
[null,null,null,null,null,{"$f":"IF(E78=4,TRUE,FALSE)","v":false},""]
[null,null,null,null,null,{"$f":"IF(E78=5,TRUE,FALSE)","v":false},""]
[null,null,null,null,null,{"$f":"IF(E78=6,TRUE,FALSE)","v":false},""]
[null,"实现韧性最大化的措施","责任机构","时间线",null,null,""]
[null,null,null,null,null,null,""]
[null,null,null,null,null,null,""]
[null,"7.3.2 - 企业业务连续性计划",null,null,null,null,"7.3.2"]
[null,"问题","注释",null,null,null,""]
[null,null,null,null,null,null,""]
[null,"测评尺度","请提供核查方法（解释说明及证据）",null,null,null,""]
[null,null,null,null,null,{"$f":"IF(E91=1,TRUE,FALSE)","v":false},""]
[null,null,null,null,null,{"$f":"IF(E91=2,TRUE,FALSE)","v":false},""]
[null,null,null,null,null,{"$f":"IF(E91=3,TRUE,FALSE)","v":false},""]
[null,null,null,null,null,{"$f":"IF(E91=4,TRUE,FALSE)","v":false},""]
[null,null,null,null,null,{"$f":"IF(E91=5,TRUE,FALSE)","v":false},""]
[null,null,null,null,null,{"$f":"IF(E91=6,TRUE,FALSE)","v":false},""]
[null,"实现韧性最大化的措施","责任机构","时间线",null,null,""]
[null,null,null,null,null,null,""]
[null,null,null,null,null,null,""]
[null,"7.4 - 市民参与的方法",null,null,null,null,"7.4"]
[null,null,null,null,null,null,""]
[null,"7.4.1 - 市民参与的频率",null,null,null,null,"7.4.1"]
[null,"问题","注释",null,null,null,""]
[null,null,null,null,null,null,""]
[null,"测评尺度","请提供核查方法（解释说明及证据）",null,null,null,""]
[null,null,null,null,null,{"$f":"IF(E106=1,TRUE,FALSE)","v":false},""]
[null,null,null,null,null,{"$f":"IF(E106=2,TRUE,FALSE)","v":false},""]
[null,null,null,null,null,{"$f":"IF(E106=3,TRUE,FALSE)","v":false},""]
[null,null,null,null,null,{"$f":"IF(E106=4,TRUE,FALSE)","v":false},""]
[null,null,null,null,null,{"$f":"IF(E106=5,TRUE,FALSE)","v":false},""]
[null,null,null,null,null,{"$f":"IF(E106=6,TRUE,FALSE)","v":false},""]
[null,"实现韧性最大化的措施","责任机构","时间线",null,null,""]
[null,null,null,null,null,null,""]
[null,null,null,null,null,null,""]
[null,"7.4.2 - 运用手机或电子邮件的“用户参与系统” 让市民在灾前和灾后获取和反馈最新资讯",null,null,null,null,"7.4.2"]
[null,"问题","注释",null,null,null,""]
[null,null,null,null,null,null,""]
[null,"测评尺度","请提供核查方法（解释说明及证据）",null,null,null,""]
[null,null,null,null,null,{"$f":"IF(E119=1,TRUE,FALSE)","v":false},""]
[null,null,null,null,null,{"$f":"IF(E119=2,TRUE,FALSE)","v":false},""]
[null,null,null,null,null,{"$f":"IF(E119=3,TRUE,FALSE)","v":false},""]
[null,null,null,null,null,{"$f":"IF(E119=4,TRUE,FALSE)","v":false},""]
[null,null,null,null,null,{"$f":"IF(E119=5,TRUE,FALSE)","v":false},""]
[null,null,null,null,null,{"$f":"IF(E119=6,TRUE,FALSE)","v":false},""]
[null,"实现韧性最大化的措施","责任机构","时间线",null,null,""]
[null,null,null,null,null,null,""]
[null,null,null,null,null,null,""]
[null,"7.4.3 - 验证相关教育培训的有效性",null,null,null,null,"7.4.3"]
[null,"问题","注释",null,null,null,""]
[null,null,null,null,null,null,""]
[null,"测评尺度","请提供核查方法（解释说明及证据）",null,null,null,""]
[null,null,null,null,null,{"$f":"IF(E132=1,TRUE,FALSE)","v":false},""]
[null,null,null,null,null,{"$f":"IF(E132=2,TRUE,FALSE)","v":false},""]
[null,null,null,null,null,{"$f":"IF(E132=3,TRUE,FALSE)","v":false},""]
[null,null,null,null,null,{"$f":"IF(E132=4,TRUE,FALSE)","v":false},""]
[null,null,null,null,null,{"$f":"IF(E132=5,TRUE,FALSE)","v":false},""]
[null,null,null,null,null,{"$f":"IF(E132=6,TRUE,FALSE)","v":false},""]
[null,"实现韧性最大化的措施","责任机构","时间线",null,null,""]
[null,null,null,null,null,null,""]

{"sheet":"E08","index":10,"n_rows":452,"n_cols":7,"rows_kept":452,"cut":false,"hidden":false,"merged":[[19,2,19,3],[20,2,20,3],[32,1,32,3],[33,2,33,3],[34,2,34,3],[35,2,35,3],[4,1,4,3],[5,2,5,3],[6,2,6,3],[7,2,7,3],[17,1,17,3],[18,2,18,3],[60,2,60,3],[61,2,61,3],[73,1,73,3],[74,2,74,3],[75,2,75,3],[76,2,76,3],[45,1,45,3],[46,2,46,3],[47,2,47,3],[48,2,48,3],[58,1,58,3],[59,2,59,3],[101,2,101,3],[102,2,102,3],[115,2,115,3],[116,2,116,3],[117,2,117,3],[86,1,86,3],[87,2,87,3],[88,2,88,3],[89,2,89,3],[99,1,99,3],[100,2,100,3],[114,1,114,2],[183,2,183,3],[184,2,184,3],[194,1,194,2],[195,2,195,3],[196,2,196,3],[197,2,197,3],[168,1,168,3],[169,2,169,3],[170,2,170,3],[171,2,171,3],[181,1,181,3],[182,2,182,3],[222,2,222,3],[223,2,223,3],[233,1,233,2],[234,2,234,3],[235,2,235,3],[236,2,236,3],[207,1,207,2],[208,2,208,3],[209,2,209,3],[210,2,210,3],[220,1,220,2],[221,2,221,3],[211,2,216,3],[275,2,275,3],[276,2,276,3],[277,2,277,3],[246,1,246,3],[247,2,247,3],[248,2,248,3],[249,2,249,3],[261,1,261,3],[262,2,262,3],[343,2,343,3],[344,2,344,3],[356,1,356,3],[357,2,357,3],[358,2,358,3],[359,2,359,3],[345,2,350,3],[328,1,328,3],[329,2,329,3],[330,2,330,3],[331,2,331,3],[341,1,341,3],[342,2,342,3],[332,2,337,3],[398,2,398,3],[399,2,399,3],[400,2,400,3],[369,1,369,3],[370,2,370,3],[371,2,371,3],[372,2,372,3],[382,1,382,3],[383,2,383,3],[77,2,82,3],[62,2,67,3],[49,2,54,3],[36,2,41,3],[21,2,26,3],[8,2,13,3],[157,2,162,3],[144,2,149,3],[131,2,136,3],[118,2,123,3],[103,2,108,3],[90,2,95,3],[142,2,142,3],[143,2,143,3],[153,1,153,2],[154,2,154,3],[155,2,155,3],[156,2,156,3],[127,1,127,2],[128,2,128,3],[129,2,129,3],[130,2,130,3],[140,1,140,2],[141,2,141,3],[198,2,203,3],[185,2,190,3],[172,2,177,3],[319,2,324,3],[306,2,311,3],[291,2,296,3],[278,2,283,3],[265,2,270,3],[250,2,255,3],[304,2,304,3],[305,2,305,3],[315,1,315,3],[316,2,316,3],[317,2,317,3],[318,2,318,3],[287,1,287,3],[288,2,288,3],[289,2,289,3],[290,2,290,3],[302,1,302,3],[303,2,303,3],[263,2,263,3],[264,2,264,3],[274,1,274,3],[360,2,365,3],[444,2,449,3],[431,2,436,3],[416,2,421,3],[401,2,406,3],[386,2,391,3],[373,2,378,3],[237,2,242,3],[224,2,229,3],[429,2,429,3],[430,2,430,3],[440,1,440,3],[441,2,441,3],[442,2,442,3],[443,2,443,3],[412,1,412,3],[413,2,413,3],[414,2,414,3],[415,2,415,3],[427,1,427,3],[428,2,428,3],[384,2,384,3],[385,2,385,3],[397,1,397,3]]}
[]
[]
[null,"8.1 - 防护性基础设施 ",null,null,null,null,"8.1"]
[null,null,null,null,null,null,""]
[null,"8.1.1 - 充足的防护性基础设施 （生态系统作为天然缓冲带 - 见要素5）",null,null,null,null,"8.1.1"]
[null,"问题","注释",null,null,null,""]
[null,null,null,null,null,null,""]
[null,"测评尺度","请提供核查方法（解释说明及证据）",null,null,null,""]
[null,null,null,null,null,{"$f":"IF(E9=1,TRUE,FALSE)","v":false},""]
[null,null,null,null,null,{"$f":"IF(E9=2,TRUE,FALSE)","v":false},""]
[null,null,null,null,null,{"$f":"IF(E9=3,TRUE,FALSE)","v":false},""]
[null,null,null,null,null,{"$f":"IF(E9=4,TRUE,FALSE)","v":false},""]
[null,null,null,null,null,{"$f":"IF(E9=5,TRUE,FALSE)","v":false},""]
[null,null,null,null,null,{"$f":"IF(E9=6,TRUE,FALSE)","v":false},""]
[null,"实现韧性最大化的措施","责任机构","时间线",null,null,""]
[null,null,null,null,null,null,""]
[null,null,null,null,null,null,""]
[null,"8.1.2 - 对防护性基础设施的有效维护",null,null,null,null,"8.1.2"]
[null,"问题","注释",null,null,null,""]
[null,null,null,null,null,null,""]
[null,"测评尺度","请提供核查方法（解释说明及证据）",null,null,null,""]
[null,null,null,null,null,{"$f":"IF(E22=1,TRUE,FALSE)","v":false},""]
[null,null,null,null,null,{"$f":"IF(E22=2,TRUE,FALSE)","v":false},""]
[null,null,null,null,null,{"$f":"IF(E22=3,TRUE,FALSE)","v":false},""]
[null,null,null,null,null,{"$f":"IF(E22=4,TRUE,FALSE)","v":false},""]
[null,null,null,null,null,{"$f":"IF(E22=5,TRUE,FALSE)","v":false},""]
[null,null,null,null,null,{"$f":"IF(E22=6,TRUE,FALSE)","v":false},""]
[null,"实现韧性最大化的措施","责任机构","时间线",null,null,""]
[null,null,null,null,null,null,""]
[null,null,null,null,null,null,""]
[null,"8.2 - 用水和下水设施",null,null,null,null,"8.2"]
[null,null,null,null,null,null,""]
[null,"8.2.1 -停水风险",null,null,null,null,"8.2.1"]
[null,"问题","注释",null,null,null,""]
[null,null,null,null,null,null,""]
[null,"测评尺度","请提供核查方法（解释说明及证据）",null,null,null,""]
[null,null,null,null,null,{"$f":"IF(E37=1,TRUE,FALSE)","v":false},""]
[null,null,null,null,null,{"$f":"IF(E37=2,TRUE,FALSE)","v":false},""]
[null,null,null,null,null,{"$f":"IF(E37=3,TRUE,FALSE)","v":false},""]
[null,null,null,null,null,{"$f":"IF(E37=4,TRUE,FALSE)","v":false},""]
[null,null,null,null,null,{"$f":"IF(E37=5,TRUE,FALSE)","v":false},""]
[null,null,null,null,null,{"$f":"IF(E37=6,TRUE,FALSE)","v":false},""]
[null,"实现韧性最大化的措施","责任机构","时间线",null,null,""]
[null,null,null,null,null,null,""]
[null,null,null,null,null,null,""]
[null,"8.2.2 - 由于停水造成的特定关键资产（例如，医院服务或其他关键资产）服务中断风险",null,null,null,null,"8.2.2"]
[null,"问题","注释",null,null,null,""]
[null,null,null,null,null,null,""]
[null,"测评尺度","请提供核查方法（解释说明及证据）",null,null,null,""]
[null,null,null,null,null,{"$f":"IF(E50=1,TRUE,FALSE)","v":false},""]
[null,null,null,null,null,{"$f":"IF(E50=2,TRUE,FALSE)","v":false},""]
[null,null,null,null,null,{"$f":"IF(E50=3,TRUE,FALSE)","v":false},""]
[null,null,null,null,null,{"$f":"IF(E50=4,TRUE,FALSE)","v":false},""]
[null,null,null,null,null,{"$f":"IF(E50=5,TRUE,FALSE)","v":false},""]
[null,null,null,null,null,{"$f":"IF(E50=6,TRUE,FALSE)","v":false},""]
[null,"实现韧性最大化的措施","责任机构","时间线",null,null,""]
[null,null,null,null,null,null,""]
[null,null,null,null,null,null,""]
[null,"8.2.3 - 恢复正常供应所需支出",null,null,null,null,"8.2.3"]
[null,"问题","注释",null,null,null,""]
[null,null,null,null,null,null,""]
[null,"测评尺度","请提供核查方法（解释说明及证据）",null,null,null,""]
[null,null,null,null,null,{"$f":"IF(E63=1,TRUE,FALSE)","v":false},""]
[null,null,null,null,null,{"$f":"IF(E63=2,TRUE,FALSE)","v":false},""]
[null,null,null,null,null,{"$f":"IF(E63=3,TRUE,FALSE)","v":false},""]
[null,null,null,null,null,{"$f":"IF(E63=4,TRUE,FALSE)","v":false},""]
[null,null,null,null,null,{"$f":"IF(E63=5,TRUE,FALSE)","v":false},""]
[null,null,null,null,null,{"$f":"IF(E63=6,TRUE,FALSE)","v":false},""]
[null,"实现韧性最大化的措施","责任机构","时间线",null,null,""]
[null,null,null,null,null,null,""]
[null,null,null,null,null,null,""]
[null,"8.3 - 能源 －电力",null,null,null,null,"8.3"]
[null,null,null,null,null,null,""]
[null,"8.3.1 -  停电风险",null,null,null,null,"8.3.1"]
[null,"问题","注释",null,null,null,""]
[null,null,null,null,null,null,""]
[null,"测评尺度","请提供核查方法（解释说明及证据）",null,null,null,""]
[null,null,null,null,null,{"$f":"IF(E78=1,TRUE,FALSE)","v":false},""]
[null,null,null,null,null,{"$f":"IF(E78=2,TRUE,FALSE)","v":false},""]
[null,null,null,null,null,{"$f":"IF(E78=3,TRUE,FALSE)","v":false},""]
[null,null,null,null,null,{"$f":"IF(E78=4,TRUE,FALSE)","v":false},""]
[null,null,null,null,null,{"$f":"IF(E78=5,TRUE,FALSE)","v":false},""]
[null,null,null,null,null,{"$f":"IF(E78=6,TRUE,FALSE)","v":false},""]
[null,"实现韧性最大化的措施","责任机构","时间线",null,null,""]
[null,null,null,null,null,null,""]
[null,null,null,null,null,null,""]
[null,"8.3.2 -由于停造成的特定关键资产服务中断风险",null,null,null,null,"8.3.2"]
[null,"问题","注释",null,null,null,""]
[null,null,null,null,null,null,""]
[null,"测评尺度","请提供核查方法（解释说明及证据）",null,null,null,""]
[null,null,null,null,null,{"$f":"IF(E91=1,TRUE,FALSE)","v":false},""]
[null,null,null,null,null,{"$f":"IF(E91=2,TRUE,FALSE)","v":false},""]
[null,null,null,null,null,{"$f":"IF(E91=3,TRUE,FALSE)","v":false},""]
[null,null,null,null,null,{"$f":"IF(E91=4,TRUE,FALSE)","v":false},""]
[null,null,null,null,null,{"$f":"IF(E91=5,TRUE,FALSE)","v":false},""]
[null,null,null,null,null,{"$f":"IF(E91=6,TRUE,FALSE)","v":false},""]
[null,"实现韧性最大化的措施","责任机构","时间线",null,null,""]
[null,null,null,null,null,null,""]
[null,null,null,null,null,null,""]
[null,"8.3.3 - 恢复正常供应所需支出",null,null,null,null,"8.3.3"]
[null,"问题","注释",null,null,null,""]
[null,null,null,null,null,null,""]
[null,"测评尺度","请提供核查方法（解释说明及证据）",null,null,null,""]
[null,null,null,null,null,{"$f":"IF(E104=1,TRUE,FALSE)","v":false},""]
[null,null,null,null,null,{"$f":"IF(E104=2,TRUE,FALSE)","v":false},""]
[null,null,null,null,null,{"$f":"IF(E104=3,TRUE,FALSE)","v":false},""]
[null,null,null,null,null,{"$f":"IF(E104=4,TRUE,FALSE)","v":false},""]
[null,null,null,null,null,{"$f":"IF(E104=5,TRUE,FALSE)","v":false},""]
[null,null,null,null,null,{"$f":"IF(E104=6,TRUE,FALSE)","v":false},""]
[null,"实现韧性最大化的措施","责任机构","时间线",null,null,""]
[null,null,null,null,null,null,""]
[null,null,null,null,null,null,""]
[null,"8.4 - 能源 － 气体燃料",null,null,null,null,"8.4"]
[null,null,null,null,null,null,""]
[null,"8.4.1 - 气体燃料供应系统的安全性和完整性（如果适用）",null,null,null,null,"8.4.1"]
[null,"问题","注释",null,null,null,""]
[null,null,null,null,null,null,""]
[null,"测评尺度","请提供核查方法（解释说明及证据）",null,null,null,""]
[null,null,null,null,null,{"$f":"IF(E119=1,TRUE,FALSE)","v":false},""]
[null,null,null,null,null,{"$f":"IF(E119=2,TRUE,FALSE)","v":false},""]
[null,null,null,null,null,{"$f":"IF(E119=3,TRUE,FALSE)","v":false},""]
[null,null,null,null,null,{"$f":"IF(E119=4,TRUE,FALSE)","v":false},""]
[null,null,null,null,null,{"$f":"IF(E119=5,TRUE,FALSE)","v":false},""]
[null,null,null,null,null,{"$f":"IF(E119=6,TRUE,FALSE)","v":false},""]
[null,"实现韧性最大化的措施","责任机构","时间线",null,null,""]
[null,null,null,null,null,null,""]
[null,null,null,null,null,null,""]
[null,"8.4.2 - 停气风险",null,null,null,null,"8.4.2"]
[null,"问题","注释",null,null,null,""]
[null,null,null,null,null,null,""]
[null,"测评尺度","请提供核查方法（解释说明及证据）",null,null,null,""]
[null,null,null,null,null,{"$f":"IF(E132=1,TRUE,FALSE)","v":false},""]
[null,null,null,null,null,{"$f":"IF(E132=2,TRUE,FALSE)","v":false},""]
[null,null,null,null,null,{"$f":"IF(E132=3,TRUE,FALSE)","v":false},""]
[null,null,null,null,null,{"$f":"IF(E132=4,TRUE,FALSE)","v":false},""]
[null,null,null,null,null,{"$f":"IF(E132=5,TRUE,FALSE)","v":false},""]
[null,null,null,null,null,{"$f":"IF(E132=6,TRUE,FALSE)","v":false},""]
[null,"实现韧性最大化的措施","责任机构","时间线",null,null,""]
[null,null,null,null,null,null,""]
[null,null,null,null,null,null,""]
[null,"8.4.3 - 由于停气造成的特定关键资产服务中断风险",null,null,null,null,"8.4.3"]
[null,"问题","注释",null,null,null,""]
[null,null,null,null,null,null,""]
[null,"测评尺度","请提供核查方法（解释说明及证据）",null,null,null,""]
[null,null,null,null,null,{"$f":"IF(E145=1,TRUE,FALSE)","v":false},""]
[null,null,null,null,null,{"$f":"IF(E145=2,TRUE,FALSE)","v":false},""]
[null,null,null,null,null,{"$f":"IF(E145=3,TRUE,FALSE)","v":false},""]
[null,null,null,null,null,{"$f":"IF(E145=4,TRUE,FALSE)","v":false},""]
[null,null,null,null,null,{"$f":"IF(E145=5,TRUE,FALSE)","v":false},""]
[null,null,null,null,null,{"$f":"IF(E145=6,TRUE,FALSE)","v":false},""]
[null,"实现韧性最大化的措施","责任机构","时间线",null,null,""]
[null,null,null,null,null,null,""]
[null,null,null,null,null,null,""]
[null,"8.4.4 - 恢复正常公共服务所需支出",null,null,null,null,"8.4.4"]
[null,"问题","注释",null,null,null,""]
[null,null,null,null,null,null,""]
[null,"测评尺度","请提供核查方法（解释说明及证据）",null,null,null,""]
[null,null,null,null,null,{"$f":"IF(E158=1,TRUE,FALSE)","v":false},""]
[null,null,null,null,null,{"$f":"IF(E158=2,TRUE,FALSE)","v":false},""]
[null,null,null,null,null,{"$f":"IF(E158=3,TRUE,FALSE)","v":false},""]
[null,null,null,null,null,{"$f":"IF(E158=4,TRUE,FALSE)","v":false},""]
[null,null,null,null,null,{"$f":"IF(E158=5,TRUE,FALSE)","v":false},""]
[null,null,null,null,null,{"$f":"IF(E158=6,TRUE,FALSE)","v":false},""]
[null,"实现韧性最大化的措施","责任机构","时间线",null,null,""]
[null,null,null,null,null,null,""]
[null,null,null,null,null,null,""]
[null,"8.5 - 交通运输",null,null,null,null,"8.5"]
[null,null,null,null,null,null,""]
[null,"8.5.1 - 道路 - 停运风险",null,null,null,null,"8.5.1"]
[null,"问题","注释",null,null,null,""]
[null,null,null,null,null,null,""]
[null,"测评尺度","请提供核查方法（解释说明及证据）",null,null,null,""]
[null,null,null,null,null,{"$f":"IF(E173=1,TRUE,FALSE)","v":false},""]
[null,null,null,null,null,{"$f":"IF(E173=2,TRUE,FALSE)","v":false},""]
[null,null,null,null,null,{"$f":"IF(E173=3,TRUE,FALSE)","v":false},""]
[null,null,null,null,null,{"$f":"IF(E173=4,TRUE,FALSE)","v":false},""]
[null,null,null,null,null,{"$f":"IF(E173=5,TRUE,FALSE)","v":false},""]
[null,null,null,null,null,{"$f":"IF(E173=6,TRUE,FALSE)","v":false},""]
[null,"实现韧性最大化的措施","责任机构","时间线",null,null,""]
[null,null,null,null,null,null,""]
[null,null,null,null,null,null,""]
[null,"8.5.2 - 道路 -  剩余关键通路及疏散路线",null,null,null,null,"8.5.2"]
[null,"问题","注释",null,null,null,""]
[null,null,null,null,null,null,""]
[null,"测评尺度","请提供核查方法（解释说明及证据）",null,null,null,""]
[null,null,null,null,null,{"$f":"IF(E186=1,TRUE,FALSE)","v":false},""]
[null,null,null,null,null,{"$f":"IF(E186=2,TRUE,FALSE)","v":false},""]
[null,null,null,null,null,{"$f":"IF(E186=3,TRUE,FALSE)","v":false},""]
[null,null,null,null,null,{"$f":"IF(E186=4,TRUE,FALSE)","v":false},""]
[null,null,null,null,null,{"$f":"IF(E186=5,TRUE,FALSE)","v":false},""]
[null,null,null,null,null,{"$f":"IF(E186=6,TRUE,FALSE)","v":false},""]
[null,"实现韧性最大化的措施","责任机构","时间线",null,null,""]
[null,null,null,null,null,null,""]
[null,null,null,null,null,null,""]
[null,"8.5.3 - 铁路/地铁（若适用） -  停运风险",null,null,null,null,"8.5.3"]
[null,"问题","注释",null,null,null,""]
[null,null,null,null,null,null,""]
[null,"测评尺度","请提供核查方法（解释说明及证据）",null,null,null,""]
[null,null,null,null,null,{"$f":"IF(E199=1,TRUE,FALSE)","v":false},""]
[null,null,null,null,null,{"$f":"IF(E199=2,TRUE,FALSE)","v":false},""]
[null,null,null,null,null,{"$f":"IF(E199=3,TRUE,FALSE)","v":false},""]
[null,null,null,null,null,{"$f":"IF(E199=4,TRUE,FALSE)","v":false},""]
[null,null,null,null,null,{"$f":"IF(E199=5,TRUE,FALSE)","v":false},""]
[null,null,null,null,null,{"$f":"IF(E199=6,TRUE,FALSE)","v":false},""]
[null,"实现韧性最大化的措施","责任机构","时间线",null,null,""]
[null,null,null,null,null,null,""]
[null,null,null,null,null,null,""]
[null,"8.5.4 - 航空（若适用）",null,null,null,null,"8.5.4"]
[null,"问题","注释",null,null,null,""]
[null,null,null,null,null,null,""]
[null,"测评尺度","请提供核查方法（解释说明及证据）",null,null,null,""]
[null,null,null,null,null,{"$f":"IF(E212=1,TRUE,FALSE)","v":false},""]
[null,null,null,null,null,{"$f":"IF(E212=2,TRUE,FALSE)","v":false},""]
[null,null,null,null,null,{"$f":"IF(E212=3,TRUE,FALSE)","v":false},""]
[null,null,null,null,null,{"$f":"IF(E212=4,TRUE,FALSE)","v":false},""]
[null,null,null,null,null,{"$f":"IF(E212=5,TRUE,FALSE)","v":false},""]
[null,null,null,null,null,{"$f":"IF(E212=6,TRUE,FALSE)","v":false},""]
[null,"实现韧性最大化的措施","责任机构","时间线",null,null,""]
[null,null,null,null,null,null,""]
[null,null,null,null,null,null,""]
[null,"8.5.5 - 河道/海港（若适用）     ",null,null,null,null,"8.5.5"]
[null,"问题","注释",null,null,null,""]
[null,null,null,null,null,null,""]
[null,"测评尺度","请提供核查方法（解释说明及证据）",null,null,null,""]
[null,null,null,null,null,{"$f":"IF(E225=1,TRUE,FALSE)","v":false},""]
[null,null,null,null,null,{"$f":"IF(E225=2,TRUE,FALSE)","v":false},""]
[null,null,null,null,null,{"$f":"IF(E225=3,TRUE,FALSE)","v":false},""]
[null,null,null,null,null,{"$f":"IF(E225=4,TRUE,FALSE)","v":false},""]
[null,null,null,null,null,{"$f":"IF(E225=5,TRUE,FALSE)","v":false},""]
[null,null,null,null,null,{"$f":"IF(E225=6,TRUE,FALSE)","v":false},""]
[null,"实现韧性最大化的措施","责任机构","时间线",null,null,""]
[null,null,null,null,null,null,""]
[null,null,null,null,null,null,""]
[null,"8.5.6 - 其他公共交通（若适用）  ",null,null,null,null,"8.5.6"]
[null,"问题","注释",null,null,null,""]
[null,null,null,null,null,null,""]
[null,"测评尺度","请提供核查方法（解释说明及证据）",null,null,null,""]
[null,null,null,null,null,{"$f":"IF(E238=1,TRUE,FALSE)","v":false},""]
[null,null,null,null,null,{"$f":"IF(E238=2,TRUE,FALSE)","v":false},""]
[null,null,null,null,null,{"$f":"IF(E238=3,TRUE,FALSE)","v":false},""]
[null,null,null,null,null,{"$f":"IF(E238=4,TRUE,FALSE)","v":false},""]
[null,null,null,null,null,{"$f":"IF(E238=5,TRUE,FALSE)","v":false},""]
[null,null,null,null,null,{"$f":"IF(E238=6,TRUE,FALSE)","v":false},""]
[null,"实现韧性最大化的措施","责任机构","时间线",null,null,""]
[null,null,null,null,null,null,""]
[null,null,null,null,null,null,""]
[null,"8.5.7 - 恢复服务的成本（所有交通运输路线）",null,null,null,null,"8.5.7"]
[null,"问题","注释",null,null,null,""]
[null,null,null,null,null,null,""]
[null,"测评尺度","请提供核查方法（解释说明及证据）",null,null,null,""]
[null,null,null,null,null,{"$f":"IF(E251=1,TRUE,FALSE)","v":false},""]
[null,null,null,null,null,{"$f":"IF(E251=2,TRUE,FALSE)","v":false},""]
[null,null,null,null,null,{"$f":"IF(E251=3,TRUE,FALSE)","v":false},""]
[null,null,null,null,null,{"$f":"IF(E251=4,TRUE,FALSE)","v":false},""]
[null,null,null,null,null,{"$f":"IF(E251=5,TRUE,FALSE)","v":false},""]
[null,null,null,null,null,{"$f":"IF(E251=6,TRUE,FALSE)","v":false},""]
[null,"实现韧性最大化的措施","责任机构","时间线",null,null,""]
[null,null,null,null,null,null,""]
[null,null,null,null,null,null,""]
[null,"8.6 - 通讯",null,null,null,null,"8.6"]
[null,null,null,null,null,null,""]
[null,"8.6.1 - 通讯中断风险",null,null,null,null,"8.6.1"]
[null,"问题","注释",null,null,null,""]
[null,null,null,null,null,null,""]
[null,"测评尺度","请提供核查方法（解释说明及证据）",null,null,null,""]
[null,null,null,null,null,{"$f":"IF(E266=1,TRUE,FALSE)","v":false},""]
[null,null,null,null,null,{"$f":"IF(E266=2,TRUE,FALSE)","v":false},""]
[null,null,null,null,null,{"$f":"IF(E266=3,TRUE,FALSE)","v":false},""]
[null,null,null,null,null,{"$f":"IF(E266=4,TRUE,FALSE)","v":false},""]
[null,null,null,null,null,{"$f":"IF(E266=5,TRUE,FALSE)","v":false},""]
[null,null,null,null,null,{"$f":"IF(E266=6,TRUE,FALSE)","v":false},""]
[null,"实现韧性最大化的措施","责任机构","时间线",null,null,""]
[null,null,null,null,null,null,""]
[null,null,null,null,null,null,""]
[null,"8.6.2 - 由于通讯中断造成的特定关键资产服务中断风险",null,null,null,null,"8.6.2"]
[null,"问题","注释",null,null,null,""]
[null,null,null,null,null,null,""]
[null,"测评尺度","请提供核查方法（解释说明及证据）",null,null,null,""]
[null,null,null,null,null,{"$f":"IF(E279=1,TRUE,FALSE)","v":false},""]
[null,null,null,null,null,{"$f":"IF(E279=2,TRUE,FALSE)","v":false},""]
[null,null,null,null,null,{"$f":"IF(E279=3,TRUE,FALSE)","v":false},""]
[null,null,null,null,null,{"$f":"IF(E279=4,TRUE,FALSE)","v":false},""]
[null,null,null,null,null,{"$f":"IF(E279=5,TRUE,FALSE)","v":false},""]
[null,null,null,null,null,{"$f":"IF(E279=6,TRUE,FALSE)","v":false},""]
[null,"实现韧性最大化的措施","责任机构","时间线",null,null,""]
[null,null,null,null,null,null,""]
[null,null,null,null,null,null,""]
[null,"8.6.3 - 恢复服务的成本",null,null,null,null,"8.6.3"]
[null,"问题","注释",null,null,null,""]
[null,null,null,null,null,null,""]
[null,"测评尺度","请提供核查方法（解释说明及证据）",null,null,null,""]
[null,null,null,null,null,{"$f":"IF(E292=1,TRUE,FALSE)","v":false},""]
[null,null,null,null,null,{"$f":"IF(E292=2,TRUE,FALSE)","v":false},""]
[null,null,null,null,null,{"$f":"IF(E292=3,TRUE,FALSE)","v":false},""]
[null,null,null,null,null,{"$f":"IF(E292=4,TRUE,FALSE)","v":false},""]
[null,null,null,null,null,{"$f":"IF(E292=5,TRUE,FALSE)","v":false},""]
[null,null,null,null,null,{"$f":"IF(E292=6,TRUE,FALSE)","v":false},""]
[null,"实现韧性最大化的措施","责任机构","时间线",null,null,""]
[null,null,null,null,null,null,""]
[null,null,null,null,null,null,""]
[null,"8.7 - 医疗保健",null,null,null,null,"8.7"]
[null,null,null,null,null,null,""]
[null,"8.7.1 - 医疗保健及应急设施的结构性安全和灾害韧性（人员配备/先前救援人员 - 见要素9）",null,null,null,null,"8.7.1"]
[null,"问题","注释",null,null,null,""]
[null,null,null,null,null,null,""]
[null,"测评尺度","请提供核查方法（解释说明及证据）",null,null,null,""]
[null,null,null,null,null,{"$f":"IF(E307=1,TRUE,FALSE)","v":false},""]
[null,null,null,null,null,{"$f":"IF(E307=2,TRUE,FALSE)","v":false},""]
[null,null,null,null,null,{"$f":"IF(E307=3,TRUE,FALSE)","v":false},""]
[null,null,null,null,null,{"$f":"IF(E307=4,TRUE,FALSE)","v":false},""]
[null,null,null,null,null,{"$f":"IF(E307=5,TRUE,FALSE)","v":false},""]
[null,null,null,null,null,{"$f":"IF(E307=6,TRUE,FALSE)","v":false},""]
[null,"实现韧性最大化的措施","责任机构","时间线",null,null,""]
[null,null,null,null,null,null,""]
[null,null,null,null,null,null,""]
[null,"8.7.1.1 -  医疗保健及应急设施的结构安全性和灾害韧性（人员配备/先前救援人员 - 见要素9）",null,null,null,null,"8.7.1.1"]
[null,"问题","注释",null,null,null,""]
[null,null,null,null,null,null,""]
[null,"测评尺度","请提供核查方法（解释说明及证据）",null,null,null,""]
[null,null,null,null,null,{"$f":"IF(E320=1,TRUE,FALSE)","v":false},""]
[null,null,null,null,null,{"$f":"IF(E320=2,TRUE,FALSE)","v":false},""]
[null,null,null,null,null,{"$f":"IF(E320=3,TRUE,FALSE)","v":false},""]
[null,null,null,null,null,{"$f":"IF(E320=4,TRUE,FALSE)","v":false},""]
[null,null,null,null,null,{"$f":"IF(E320=5,TRUE,FALSE)","v":false},""]
[null,null,null,null,null,{"$f":"IF(E320=6,TRUE,FALSE)","v":false},""]
[null,"实现韧性最大化的措施","责任机构","时间线",null,null,""]
[null,null,null,null,null,null,""]
[null,null,null,null,null,null,""]
[null,"8.7.2 - 健康档案与数据",null,null,null,null,"8.7.2"]
[null,"问题","注释",null,null,null,""]
[null,null,null,null,null,null,""]
[null,"测评尺度","请提供核查方法（解释说明及证据）",null,null,null,""]
[null,null,null,null,null,{"$f":"IF(E333=1,TRUE,FALSE)","v":false},""]
[null,null,null,null,null,{"$f":"IF(E333=2,TRUE,FALSE)","v":false},""]
[null,null,null,null,null,{"$f":"IF(E333=3,TRUE,FALSE)","v":false},""]
[null,null,null,null,null,{"$f":"IF(E333=4,TRUE,FALSE)","v":false},""]
[null,null,null,null,null,{"$f":"IF(E333=5,TRUE,FALSE)","v":false},""]
[null,null,null,null,null,{"$f":"IF(E333=6,TRUE,FALSE)","v":false},""]
[null,"实现韧性最大化的措施","责任机构","时间线",null,null,""]
[null,null,null,null,null,null,""]
[null,null,null,null,null,null,""]
[null,"8.7.3 - 紧急医疗服务的可用性，包括实际需要的设备与紧急药物供应",null,null,null,null,"8.7.3"]
[null,"问题","注释",null,null,null,""]
[null,null,null,null,null,null,""]
[null,"测评尺度","请提供核查方法（解释说明及证据）",null,null,null,""]
[null,null,null,null,null,{"$f":"IF(E346=1,TRUE,FALSE)","v":false},""]
[null,null,null,null,null,{"$f":"IF(E346=2,TRUE,FALSE)","v":false},""]
[null,null,null,null,null,{"$f":"IF(E346=3,TRUE,FALSE)","v":false},""]
[null,null,null,null,null,{"$f":"IF(E346=4,TRUE,FALSE)","v":false},""]
[null,null,null,null,null,{"$f":"IF(E346=5,TRUE,FALSE)","v":false},""]
[null,null,null,null,null,{"$f":"IF(E346=6,TRUE,FALSE)","v":false},""]
[null,"实现韧性最大化的措施","责任机构","时间线",null,null,""]
[null,null,null,null,null,null,""]
[null,null,null,null,null,null,""]
[null,"8.8 - 教育",null,null,null,null,"8.8"]
[null,null,null,null,null,null,""]
[null,"8.8.1 - 教育设施的结构安全性",null,null,null,null,"8.8.1"]
[null,"问题","注释",null,null,null,""]
[null,null,null,null,null,null,""]
[null,"测评尺度","请提供核查方法（解释说明及证据）",null,null,null,""]
[null,null,null,null,null,{"$f":"IF(E361=1,TRUE,FALSE)","v":false},""]
[null,null,null,null,null,{"$f":"IF(E361=2,TRUE,FALSE)","v":false},""]
[null,null,null,null,null,{"$f":"IF(E361=3,TRUE,FALSE)","v":false},""]
[null,null,null,null,null,{"$f":"IF(E361=4,TRUE,FALSE)","v":false},""]
[null,null,null,null,null,{"$f":"IF(E361=5,TRUE,FALSE)","v":false},""]
[null,null,null,null,null,{"$f":"IF(E361=6,TRUE,FALSE)","v":false},""]
[null,"实现韧性最大化的措施","责任机构","时间线",null,null,""]
[null,null,null,null,null,null,""]
[null,null,null,null,null,null,""]
[null,"8.8.2 - 教学时间损失",null,null,null,null,"8.8.2"]
[null,"问题","注释",null,null,null,""]
[null,null,null,null,null,null,""]
[null,"测评尺度","请提供核查方法（解释说明及证据）",null,null,null,""]
[null,null,null,null,null,{"$f":"IF(E374=1,TRUE,FALSE)","v":false},""]
[null,null,null,null,null,{"$f":"IF(E374=2,TRUE,FALSE)","v":false},""]
[null,null,null,null,null,{"$f":"IF(E374=3,TRUE,FALSE)","v":false},""]
[null,null,null,null,null,{"$f":"IF(E374=4,TRUE,FALSE)","v":false},""]
[null,null,null,null,null,{"$f":"IF(E374=5,TRUE,FALSE)","v":false},""]
[null,null,null,null,null,{"$f":"IF(E374=6,TRUE,FALSE)","v":false},""]
[null,"实现韧性最大化的措施","责任机构","时间线",null,null,""]
[null,null,null,null,null,null,""]
[null,null,null,null,null,null,""]
[null,"8.8.3 - 教育数据",null,null,null,null,"8.8.3"]
[null,"问题","注释",null,null,null,""]
[null,null,null,null,null,null,""]
[null,"测评尺度","请提供核查方法（解释说明及证据）",null,null,null,""]
[null,null,null,null,null,{"$f":"IF(E387=1,TRUE,FALSE)","v":false},""]
[null,null,null,null,null,{"$f":"IF(E387=2,TRUE,FALSE)","v":false},""]
[null,null,null,null,null,{"$f":"IF(E387=3,TRUE,FALSE)","v":false},""]
[null,null,null,null,null,{"$f":"IF(E387=4,TRUE,FALSE)","v":false},""]
[null,null,null,null,null,{"$f":"IF(E387=5,TRUE,FALSE)","v":false},""]
[null,null,null,null,null,{"$f":"IF(E387=6,TRUE,FALSE)","v":false},""]
[null,"实现韧性最大化的措施","责任机构","时间线",null,null,""]
[null,null,null,null,null,null,""]
[null,null,null,null,null,null,""]
[null,"8.9 - 监狱 （请注意治安以及其他先遣救援资产在要素9中讨论）",null,null,null,null,"8.9"]
[null,null,null,null,null,null,""]
[null,"8.9.1 - 监狱系统的灾害韧性",null,null,null,null,"8.9.1"]
[null,"问题","注释",null,null,null,""]
[null,null,null,null,null,null,""]
[null,"测评尺度","请提供核查方法（解释说明及证据）",null,null,null,""]
[null,null,null,null,null,{"$f":"IF(E402=1,TRUE,FALSE)","v":false},""]
[null,null,null,null,null,{"$f":"IF(E402=2,TRUE,FALSE)","v":false},""]
[null,null,null,null,null,{"$f":"IF(E402=3,TRUE,FALSE)","v":false},""]
[null,null,null,null,null,{"$f":"IF(E402=4,TRUE,FALSE)","v":false},""]
[null,null,null,null,null,{"$f":"IF(E402=5,TRUE,FALSE)","v":false},""]
[null,null,null,null,null,{"$f":"IF(E402=6,TRUE,FALSE)","v":false},""]
[null,"实现韧性最大化的措施","责任机构","时间线",null,null,""]
[null,null,null,null,null,null,""]
[null,null,null,null,null,null,""]
[null,"8.10 -  行政管理",null,null,null,null,"8.10"]
[null,null,null,null,null,null,""]
[null,"8.10.1 - 保障所有关键行政功能的持续性",null,null,null,null,"8.10.1"]
[null,"问题","注释",null,null,null,""]
[null,null,null,null,null,null,""]
[null,"测评尺度","请提供核查方法（解释说明及证据）",null,null,null,""]
[null,null,null,null,null,{"$f":"IF(E417=1,TRUE,FALSE)","v":false},""]
[null,null,null,null,null,{"$f":"IF(E417=2,TRUE,FALSE)","v":false},""]
[null,null,null,null,null,{"$f":"IF(E417=3,TRUE,FALSE)","v":false},""]
[null,null,null,null,null,{"$f":"IF(E417=4,TRUE,FALSE)","v":false},""]
[null,null,null,null,null,{"$f":"IF(E417=5,TRUE,FALSE)","v":false},""]
[null,null,null,null,null,{"$f":"IF(E417=6,TRUE,FALSE)","v":false},""]
[null,"实现韧性最大化的措施","责任机构","时间线",null,null,""]
[null,null,null,null,null,null,""]
[null,null,null,null,null,null,""]
[null,"8.11 - 计算机系统与数据",null,null,null,null,"8.11"]
[null,null,null,null,null,null,""]
[null,"8.11.1 - 保障对政府工作持续性起关键作用的计算机系统和数据的持续性",null,null,null,null,"8.11.1"]
[null,"问题","注释",null,null,null,""]
[null,null,null,null,null,null,""]
[null,"测评尺度","请提供核查方法（解释说明及证据）",null,null,null,""]
[null,null,null,null,null,{"$f":"IF(E432=1,TRUE,FALSE)","v":false},""]
[null,null,null,null,null,{"$f":"IF(E432=2,TRUE,FALSE)","v":false},""]
[null,null,null,null,null,{"$f":"IF(E432=3,TRUE,FALSE)","v":false},""]
[null,null,null,null,null,{"$f":"IF(E432=4,TRUE,FALSE)","v":false},""]
[null,null,null,null,null,{"$f":"IF(E432=5,TRUE,FALSE)","v":false},""]
[null,null,null,null,null,{"$f":"IF(E432=6,TRUE,FALSE)","v":false},""]
[null,"实现韧性最大化的措施","责任机构","时间线",null,null,""]
[null,null,null,null,null,null,""]
[null,null,null,null,null,null,""]
[null,"8.11.2 - 保障对以上任何基础设施起关键作用的计算机系统和数据的持续性",null,null,null,null,"8.11.2"]
[null,"问题","注释",null,null,null,""]
[null,null,null,null,null,null,""]
[null,"测评尺度","请提供核查方法（解释说明及证据）",null,null,null,""]
[null,null,null,null,null,{"$f":"IF(E445=1,TRUE,FALSE)","v":false},""]
[null,null,null,null,null,{"$f":"IF(E445=2,TRUE,FALSE)","v":false},""]
[null,null,null,null,null,{"$f":"IF(E445=3,TRUE,FALSE)","v":false},""]
[null,null,null,null,null,{"$f":"IF(E445=4,TRUE,FALSE)","v":false},""]
[null,null,null,null,null,{"$f":"IF(E445=5,TRUE,FALSE)","v":false},""]
[null,null,null,null,null,{"$f":"IF(E445=6,TRUE,FALSE)","v":false},""]
[null,"实现韧性最大化的措施","责任机构","时间线",null,null,""]
[null,null,null,null,null,null,""]

{"sheet":"E09","index":11,"n_rows":236,"n_cols":7,"rows_kept":236,"cut":false,"hidden":false,"merged":[[199,2,199,3],[19,2,19,3],[20,2,20,3],[4,1,4,3],[5,2,5,3],[6,2,6,3],[7,2,7,3],[17,1,17,3],[18,2,18,3],[8,2,13,3],[63,2,63,3],[32,1,32,3],[33,2,33,3],[34,2,34,3],[35,2,35,3],[47,1,47,3],[79,2,84,3],[64,2,69,3],[48,2,48,3],[49,2,49,3],[50,2,50,3],[60,1,60,3],[61,2,61,3],[51,2,56,3],[142,1,142,3],[143,2,143,3],[144,2,144,3],[62,2,62,3],[106,2,106,3],[75,1,75,3],[76,2,76,3],[77,2,77,3],[78,2,78,3],[88,1,88,3],[89,2,89,3],[90,2,90,3],[91,2,91,3],[103,1,103,3],[104,2,104,3],[105,2,105,3],[186,2,186,3],[155,1,155,3],[156,2,156,3],[157,2,157,3],[158,2,158,3],[170,1,170,3],[171,2,171,3],[172,2,172,3],[173,2,173,3],[183,1,183,3],[184,2,184,3],[185,2,185,3],[159,2,164,3],[228,2,233,3],[215,2,220,3],[200,2,205,3],[187,2,192,3],[174,2,179,3],[213,2,213,3],[214,2,214,3],[224,1,224,3],[225,2,225,3],[226,2,226,3],[227,2,227,3],[196,1,196,3],[197,2,197,3],[198,2,198,3],[211,1,211,3],[212,2,212,3],[36,2,41,3],[21,2,26,3],[146,2,151,3],[133,2,138,3],[120,2,125,3],[107,2,112,3],[92,2,97,3],[145,2,145,3],[116,1,116,3],[117,2,117,3],[118,2,118,3],[119,2,119,3],[129,1,129,3],[130,2,130,3],[131,2,131,3],[132,2,132,3]]}
[]
[]
[null,"9.1 - 早期预警",null,null,null,null,"9.1"]
[null,null,null,null,null,null,""]
[null,"9.1.1 - 早期预警系统的存在及效力",null,null,null,null,"9.1.1"]
[null,"问题","注释",null,null,null,""]
[null,null,null,null,null,null,""]
[null,"测评尺度","请提供核查方法（解释说明及证据）",null,null,null,""]
[null,null,null,null,null,{"$f":"IF(E9=1,TRUE,FALSE)","v":false},""]
[null,null,null,null,null,{"$f":"IF(E9=2,TRUE,FALSE)","v":false},""]
[null,null,null,null,null,{"$f":"IF(E9=3,TRUE,FALSE)","v":false},""]
[null,null,null,null,null,{"$f":"IF(E9=4,TRUE,FALSE)","v":false},""]
[null,null,null,null,null,{"$f":"IF(E9=5,TRUE,FALSE)","v":false},""]
[null,null,null,null,null,{"$f":"IF(E9=6,TRUE,FALSE)","v":false},""]
[null,"实现韧性最大化的措施","责任机构","时间线",null,null,""]
[null,null,null,null,null,null,""]
[null,null,null,null,null,null,""]
[null,"9.1.1.1 - 预警范围",null,null,null,null,"9.1.1.1"]
[null,"问题","注释",null,null,null,""]
[null,null,null,null,null,null,""]
[null,"测评尺度","请提供核查方法（解释说明及证据）",null,null,null,""]
[null,null,null,null,null,{"$f":"IF(E22=1,TRUE,FALSE)","v":false},""]
[null,null,null,null,null,{"$f":"IF(E22=2,TRUE,FALSE)","v":false},""]
[null,null,null,null,null,{"$f":"IF(E22=3,TRUE,FALSE)","v":false},""]
[null,null,null,null,null,{"$f":"IF(E22=4,TRUE,FALSE)","v":false},""]
[null,null,null,null,null,{"$f":"IF(E22=5,TRUE,FALSE)","v":false},""]
[null,null,null,null,null,{"$f":"IF(E22=6,TRUE,FALSE)","v":false},""]
[null,"实现韧性最大化的措施","责任机构","时间线",null,null,""]
[null,null,null,null,null,null,""]
[null,null,null,null,null,null,""]
[null,"9.2 - 灾害响应计划",null,null,null,null,"9.2"]
[null,null,null,null,null,null,""]
[null,"9.2.1 - 存在将专业救援人员与社区组织有机结合的应急预案（灾后响应见要素10）",null,null,null,null,"9.2.1"]
[null,"问题","注释",null,null,null,""]
[null,null,null,null,null,null,""]
[null,"测评尺度","请提供核查方法（解释说明及证据）",null,null,null,""]
[null,null,null,null,null,{"$f":"IF(E37=1,TRUE,FALSE)","v":false},""]
[null,null,null,null,null,{"$f":"IF(E37=2,TRUE,FALSE)","v":false},""]
[null,null,null,null,null,{"$f":"IF(E37=3,TRUE,FALSE)","v":false},""]
[null,null,null,null,null,{"$f":"IF(E37=4,TRUE,FALSE)","v":false},""]
[null,null,null,null,null,{"$f":"IF(E37=5,TRUE,FALSE)","v":false},""]
[null,null,null,null,null,{"$f":"IF(E37=6,TRUE,FALSE)","v":false},""]
[null,"实现韧性最大化的措施","责任机构","时间线",null,null,""]
[null,null,null,null,null,null,""]
[null,null,null,null,null,null,""]
[null,"9.3 - 人员/响应者需求",null,null,null,null,"9.3"]
[null,null,null,null,null,null,""]
[null,"9.3.1 - 警察的突发救援能力及先遣急救职责",null,null,null,null,"9.3.1"]
[null,"问题","注释",null,null,null,""]
[null,null,null,null,null,null,""]
[null,"测评尺度","请提供核查方法（解释说明及证据）",null,null,null,""]
[null,null,null,null,null,{"$f":"IF(E52=1,TRUE,FALSE)","v":false},""]
[null,null,null,null,null,{"$f":"IF(E52=2,TRUE,FALSE)","v":false},""]
[null,null,null,null,null,{"$f":"IF(E52=3,TRUE,FALSE)","v":false},""]
[null,null,null,null,null,{"$f":"IF(E52=4,TRUE,FALSE)","v":false},""]
[null,null,null,null,null,{"$f":"IF(E52=5,TRUE,FALSE)","v":false},""]
[null,null,null,null,null,{"$f":"IF(E52=6,TRUE,FALSE)","v":false},""]
[null,"实现韧性最大化的措施","责任机构","时间线",null,null,""]
[null,null,null,null,null,null,""]
[null,null,null,null,null,null,""]
[null,"9.3.2 - 确定先遣急救员和其他人员的需求及可出动性",null,null,null,null,"9.3.2"]
[null,"问题","注释",null,null,null,""]
[null,null,null,null,null,null,""]
[null,"测评尺度","请提供核查方法（解释说明及证据）",null,null,null,""]
[null,null,null,null,null,{"$f":"IF(E65=1,TRUE,FALSE)","v":false},""]
[null,null,null,null,null,{"$f":"IF(E65=2,TRUE,FALSE)","v":false},""]
[null,null,null,null,null,{"$f":"IF(E65=3,TRUE,FALSE)","v":false},""]
[null,null,null,null,null,{"$f":"IF(E65=4,TRUE,FALSE)","v":false},""]
[null,null,null,null,null,{"$f":"IF(E65=5,TRUE,FALSE)","v":false},""]
[null,null,null,null,null,{"$f":"IF(E65=6,TRUE,FALSE)","v":false},""]
[null,"实现韧性最大化的措施","责任机构","时间线",null,null,""]
[null,null,null,null,null,null,""]
[null,null,null,null,null,null,""]
[null,"9.4 - 设备及救援物资需求",null,null,null,null,"9.4"]
[null,null,null,null,null,null,""]
[null,"9.4.1 - 确定设备和物资的需求及设备的可用性",null,null,null,null,"9.4.1"]
[null,"问题","注释",null,null,null,""]
[null,null,null,null,null,null,""]
[null,"测评尺度","请提供核查方法（解释说明及证据）",null,null,null,""]
[null,null,null,null,null,{"$f":"IF(E80=1,TRUE,FALSE)","v":false},""]
[null,null,null,null,null,{"$f":"IF(E80=2,TRUE,FALSE)","v":false},""]
[null,null,null,null,null,{"$f":"IF(E80=3,TRUE,FALSE)","v":false},""]
[null,null,null,null,null,{"$f":"IF(E80=4,TRUE,FALSE)","v":false},""]
[null,null,null,null,null,{"$f":"IF(E80=5,TRUE,FALSE)","v":false},""]
[null,null,null,null,null,{"$f":"IF(E80=6,TRUE,FALSE)","v":false},""]
[null,"实现韧性最大化的措施","责任机构","时间线",null,null,""]
[null,null,null,null,null,null,""]
[null,null,null,null,null,null,""]
[null,"9.4.1.1 - 确定设备和物资的需求及设备的可用性",null,null,null,null,"9.4.1.1"]
[null,"问题","注释",null,null,null,""]
[null,null,null,null,null,null,""]
[null,"测评尺度","请提供核查方法（解释说明及证据）",null,null,null,""]
[null,null,null,null,null,{"$f":"IF(E93=1,TRUE,FALSE)","v":false},""]
[null,null,null,null,null,{"$f":"IF(E93=2,TRUE,FALSE)","v":false},""]
[null,null,null,null,null,{"$f":"IF(E93=3,TRUE,FALSE)","v":false},""]
[null,null,null,null,null,{"$f":"IF(E93=4,TRUE,FALSE)","v":false},""]
[null,null,null,null,null,{"$f":"IF(E93=5,TRUE,FALSE)","v":false},""]
[null,null,null,null,null,{"$f":"IF(E93=6,TRUE,FALSE)","v":false},""]
[null,"实现韧性最大化的措施","责任机构","时间线",null,null,""]
[null,null,null,null,null,null,""]
[null,null,null,null,null,null,""]
[null,"9.5 - 食物、避难处、日常用品及能源供应",null,null,null,null,"9.5"]
[null,null,null,null,null,null,""]
[null,"9.5.1 - 可持续为居民提供食物的能力",null,null,null,null,"9.5.1"]
[null,"问题","注释",null,null,null,""]
[null,null,null,null,null,null,""]
[null,"测评尺度","请提供核查方法（解释说明及证据）",null,null,null,""]
[null,null,null,null,null,{"$f":"IF(E108=1,TRUE,FALSE)","v":false},""]
[null,null,null,null,null,{"$f":"IF(E108=2,TRUE,FALSE)","v":false},""]
[null,null,null,null,null,{"$f":"IF(E108=3,TRUE,FALSE)","v":false},""]
[null,null,null,null,null,{"$f":"IF(E108=4,TRUE,FALSE)","v":false},""]
[null,null,null,null,null,{"$f":"IF(E108=5,TRUE,FALSE)","v":false},""]
[null,null,null,null,null,{"$f":"IF(E108=6,TRUE,FALSE)","v":false},""]
[null,"实现韧性最大化的措施","责任机构","时间线",null,null,""]
[null,null,null,null,null,null,""]
[null,null,null,null,null,null,""]
[null,"9.5.2 - 避难处或安全地点满足需求的能力",null,null,null,null,"9.5.2"]
[null,"问题","注释",null,null,null,""]
[null,null,null,null,null,null,""]
[null,"测评尺度","请提供核查方法（解释说明及证据）",null,null,null,""]
[null,null,null,null,null,{"$f":"IF(E121=1,TRUE,FALSE)","v":false},""]
[null,null,null,null,null,{"$f":"IF(E121=2,TRUE,FALSE)","v":false},""]
[null,null,null,null,null,{"$f":"IF(E121=3,TRUE,FALSE)","v":false},""]
[null,null,null,null,null,{"$f":"IF(E121=4,TRUE,FALSE)","v":false},""]
[null,null,null,null,null,{"$f":"IF(E121=5,TRUE,FALSE)","v":false},""]
[null,null,null,null,null,{"$f":"IF(E121=6,TRUE,FALSE)","v":false},""]
[null,"实现韧性最大化的措施","责任机构","时间线",null,null,""]
[null,null,null,null,null,null,""]
[null,null,null,null,null,null,""]
[null,"9.5.2.1 - 避难所或安全地点可满足需求的能力",null,null,null,null,"9.5.2.1"]
[null,"问题","注释",null,null,null,""]
[null,null,"避难处包括因结构坚固和/或地理位置可抵御所讨论灾害的现有建筑— —体育场、学校大厅、购物中心、车库等。避难处需要考虑男性、女性、儿童及残疾人的不同需求。需要具备通往避难处的路标及避难处内部的使用标志。如有第三方避难处/安全场所，需通过备忘录或类似协议参与。\n",null,null,null,""]
[null,"测评尺度","请提供核查方法（解释说明及证据）",null,null,null,""]
[null,null,null,null,null,{"$f":"IF(E134=1,TRUE,FALSE)","v":false},""]
[null,null,null,null,null,{"$f":"IF(E134=2,TRUE,FALSE)","v":false},""]
[null,null,null,null,null,{"$f":"IF(E134=3,TRUE,FALSE)","v":false},""]
[null,null,null,null,null,{"$f":"IF(E134=4,TRUE,FALSE)","v":false},""]
[null,null,null,null,null,{"$f":"IF(E134=5,TRUE,FALSE)","v":false},""]
[null,null,null,null,null,{"$f":"IF(E134=6,TRUE,FALSE)","v":false},""]
[null,"实现韧性最大化的措施","责任机构","时间线",null,null,""]
[null,null,null,null,null,null,""]
[null,null,null,null,null,null,""]
[null,"9.5.3 -满足 日常用品需求的能力",null,null,null,null,"9.5.3"]
[null,"问题","注释",null,null,null,""]
[null,null,"由于日常用品在一定程度上因文化或人口而异，各城市需编撰关键日常用品清单。\n清单很可能包括：\n 卫生设施；\n 个人卫生用品及尿布；\n 药物及急救用品；\n 电池；\n 衣物；\n 寝具；\n 用于烹饪及取暖的罐装液化气；\n 用于房屋紧急修复或气候防护的材料。\n在一些国家，以上物品可能通过私营零售商提供，零售商们须与城市或其他政府机构签订谅解备忘录。",null,null,null,""]
[null,"测评尺度","请提供核查方法（解释说明及证据）",null,null,null,""]
[null,null,null,null,null,{"$f":"IF(E147=1,TRUE,FALSE)","v":false},""]
[null,null,null,null,null,{"$f":"IF(E147=2,TRUE,FALSE)","v":false},""]
[null,null,null,null,null,{"$f":"IF(E147=3,TRUE,FALSE)","v":false},""]
[null,null,null,null,null,{"$f":"IF(E147=4,TRUE,FALSE)","v":false},""]
[null,null,null,null,null,{"$f":"IF(E147=5,TRUE,FALSE)","v":false},""]
[null,null,null,null,null,{"$f":"IF(E147=6,TRUE,FALSE)","v":false},""]
[null,"实现韧性最大化的措施","责任机构","时间线",null,null,""]
[null,null,null,null,null,null,""]
[null,null,null,null,null,null,""]
[null,"9.5.4 - 燃料的可获得性",null,null,null,null,"9.5.4"]
[null,"问题","注释",null,null,null,""]
[null,null,null,null,null,null,""]
[null,"测评尺度","请提供核查方法（解释说明及证据）",null,null,null,""]
[null,null,null,null,null,{"$f":"IF(E160=1,TRUE,FALSE)","v":false},""]
[null,null,null,null,null,{"$f":"IF(E160=2,TRUE,FALSE)","v":false},""]
[null,null,null,null,null,{"$f":"IF(E160=3,TRUE,FALSE)","v":false},""]
[null,null,null,null,null,{"$f":"IF(E160=4,TRUE,FALSE)","v":false},""]
[null,null,null,null,null,{"$f":"IF(E160=5,TRUE,FALSE)","v":false},""]
[null,null,null,null,null,{"$f":"IF(E160=6,TRUE,FALSE)","v":false},""]
[null,"实现韧性最大化的措施","责任机构","时间线",null,null,""]
[null,null,null,null,null,null,""]
[null,null,null,null,null,null,""]
[null,"9.6 - 互通性及跨机构工作",null,null,null,null,"9.6"]
[null,null,null,null,null,null,""]
[null,"9.6.1 - 与邻城/国及其他级别政府就关键系统及流程的互通性",null,null,null,null,"9.6.1"]
[null,"问题","注释",null,null,null,""]
[null,null,null,null,null,null,""]
[null,"测评尺度","请提供核查方法（解释说明及证据）",null,null,null,""]
[null,null,null,null,null,{"$f":"IF(E175=1,TRUE,FALSE)","v":false},""]
[null,null,null,null,null,{"$f":"IF(E175=2,TRUE,FALSE)","v":false},""]
[null,null,null,null,null,{"$f":"IF(E175=3,TRUE,FALSE)","v":false},""]
[null,null,null,null,null,{"$f":"IF(E175=4,TRUE,FALSE)","v":false},""]
[null,null,null,null,null,{"$f":"IF(E175=5,TRUE,FALSE)","v":false},""]
[null,null,null,null,null,{"$f":"IF(E175=6,TRUE,FALSE)","v":false},""]
[null,"实现韧性最大化的措施","责任机构","时间线",null,null,""]
[null,null,null,null,null,null,""]
[null,null,null,null,null,null,""]
[null,"9.6.2 - 应急指挥中心",null,null,null,null,"9.6.2"]
[null,"问题","注释",null,null,null,""]
[null,null,null,null,null,null,""]
[null,"测评尺度","请提供核查方法（解释说明及证据）",null,null,null,""]
[null,null,null,null,null,{"$f":"IF(E188=1,TRUE,FALSE)","v":false},""]
[null,null,null,null,null,{"$f":"IF(E188=2,TRUE,FALSE)","v":false},""]
[null,null,null,null,null,{"$f":"IF(E188=3,TRUE,FALSE)","v":false},""]
[null,null,null,null,null,{"$f":"IF(E188=4,TRUE,FALSE)","v":false},""]
[null,null,null,null,null,{"$f":"IF(E188=5,TRUE,FALSE)","v":false},""]
[null,null,null,null,null,{"$f":"IF(E188=6,TRUE,FALSE)","v":false},""]
[null,"实现韧性最大化的措施","责任机构","时间线",null,null,""]
[null,null,null,null,null,null,""]
[null,null,null,null,null,null,""]
[null,"9.6.3 - 灾后恢复合作",null,null,null,null,"9.6.3"]
[null,"问题","注释",null,null,null,""]
[null,null,null,null,null,null,""]
[null,"测评尺度","请提供核查方法（解释说明及证据）",null,null,null,""]
[null,null,null,null,null,{"$f":"IF(E201=1,TRUE,FALSE)","v":false},""]
[null,null,null,null,null,{"$f":"IF(E201=2,TRUE,FALSE)","v":false},""]
[null,null,null,null,null,{"$f":"IF(E201=3,TRUE,FALSE)","v":false},""]
[null,null,null,null,null,{"$f":"IF(E201=4,TRUE,FALSE)","v":false},""]
[null,null,null,null,null,{"$f":"IF(E201=5,TRUE,FALSE)","v":false},""]
[null,null,null,null,null,{"$f":"IF(E201=6,TRUE,FALSE)","v":false},""]
[null,"实现韧性最大化的措施","责任机构","时间线",null,null,""]
[null,null,null,null,null,null,""]
[null,null,null,null,null,null,""]
[null,"9.7 - 演习",null,null,null,null,"9.7"]
[null,null,null,null,null,null,""]
[null,"9.7.1 - 实践与演习——公众与专家共同参与",null,null,null,null,"9.7.1"]
[null,"问题","注释",null,null,null,""]
[null,null,null,null,null,null,""]
[null,"测评尺度","请提供核查方法（解释说明及证据）",null,null,null,""]
[null,null,null,null,null,{"$f":"IF(E216=1,TRUE,FALSE)","v":false},""]
[null,null,null,null,null,{"$f":"IF(E216=2,TRUE,FALSE)","v":false},""]
[null,null,null,null,null,{"$f":"IF(E216=3,TRUE,FALSE)","v":false},""]
[null,null,null,null,null,{"$f":"IF(E216=4,TRUE,FALSE)","v":false},""]
[null,null,null,null,null,{"$f":"IF(E216=5,TRUE,FALSE)","v":false},""]
[null,null,null,null,null,{"$f":"IF(E216=6,TRUE,FALSE)","v":false},""]
[null,"实现韧性最大化的措施","责任机构","时间线",null,null,""]
[null,null,null,null,null,null,""]
[null,null,null,null,null,null,""]
[null,"9.7.2 - 演习及培训的效力",null,null,null,null,"9.7.2"]
[null,"问题","注释",null,null,null,""]
[null,null,null,null,null,null,""]
[null,"测评尺度","请提供核查方法（解释说明及证据）",null,null,null,""]
[null,null,null,null,null,{"$f":"IF(E229=1,TRUE,FALSE)","v":false},""]
[null,null,null,null,null,{"$f":"IF(E229=2,TRUE,FALSE)","v":false},""]
[null,null,null,null,null,{"$f":"IF(E229=3,TRUE,FALSE)","v":false},""]
[null,null,null,null,null,{"$f":"IF(E229=4,TRUE,FALSE)","v":false},""]
[null,null,null,null,null,{"$f":"IF(E229=5,TRUE,FALSE)","v":false},""]
[null,null,null,null,null,{"$f":"IF(E229=6,TRUE,FALSE)","v":false},""]
[null,"实现韧性最大化的措施","责任机构","时间线",null,null,""]
[null,null,null,null,null,null,""]

{"sheet":"E10","index":12,"n_rows":56,"n_cols":7,"rows_kept":56,"cut":false,"hidden":false,"merged":[[49,2,54,3],[34,2,39,3],[21,2,26,3],[8,2,13,3],[45,1,45,3],[46,2,46,3],[47,2,47,3],[48,2,48,3],[19,2,19,3],[20,2,20,3],[30,1,30,3],[31,2,31,3],[32,2,32,3],[33,2,33,3],[18,2,18,3],[4,1,4,3],[5,2,5,3],[6,2,6,3],[7,2,7,3],[17,1,17,3]]}
[]
[]
[null,"10.1 - 灾前进行的灾后恢复计划",null,null,null,null,"10.1"]
[]
[null,"10.1.1 - 灾后恢复与经济复苏计划",null,null,null,null,"10.1.1"]
[null,"问题","注释"]
[]
[null,"测评尺度","请提供核查方法（解释说明及证据）"]
[null,null,null,null,null,{"$f":"IF(E9=1,TRUE,FALSE)","v":false}]
[null,null,null,null,null,{"$f":"IF(E9=2,TRUE,FALSE)","v":false}]
[null,null,null,null,null,{"$f":"IF(E9=3,TRUE,FALSE)","v":false}]
[null,null,null,null,null,{"$f":"IF(E9=4,TRUE,FALSE)","v":false}]
[null,null,null,null,null,{"$f":"IF(E9=5,TRUE,FALSE)","v":false}]
[null,null,null,null,null,{"$f":"IF(E9=6,TRUE,FALSE)","v":false}]
[null,"实现韧性最大化的措施","责任机构","时间线"]
[]
[]
[null,"10.1.2 - 利益相关者参与灾后重建与复苏计划讨论的程度",null,null,null,null,"10.1.2"]
[null,"问题","注释"]
[]
[null,"测评尺度","请提供核查方法（解释说明及证据）"]
[null,null,null,null,null,{"$f":"IF(E22=1,TRUE,FALSE)","v":false}]
[null,null,null,null,null,{"$f":"IF(E22=2,TRUE,FALSE)","v":false}]
[null,null,null,null,null,{"$f":"IF(E22=3,TRUE,FALSE)","v":false}]
[null,null,null,null,null,{"$f":"IF(E22=4,TRUE,FALSE)","v":false}]
[null,null,null,null,null,{"$f":"IF(E22=5,TRUE,FALSE)","v":false}]
[null,null,null,null,null,{"$f":"IF(E22=6,TRUE,FALSE)","v":false}]
[null,"实现韧性最大化的措施","责任机构","时间线"]
[]
[]
[null,"10.1.3 - 监督未来援助接受与支付的财务安排",null,null,null,null,"10.1.3"]
[null,"问题","注释"]
[]
[null,"测评尺度","请提供核查方法（解释说明及证据）"]
[null,null,null,null,null,{"$f":"IF(E35=1,TRUE,FALSE)","v":false}]
[null,null,null,null,null,{"$f":"IF(E35=2,TRUE,FALSE)","v":false}]
[null,null,null,null,null,{"$f":"IF(E35=3,TRUE,FALSE)","v":false}]
[null,null,null,null,null,{"$f":"IF(E35=4,TRUE,FALSE)","v":false}]
[null,null,null,null,null,{"$f":"IF(E35=5,TRUE,FALSE)","v":false}]
[null,null,null,null,null,{"$f":"IF(E35=6,TRUE,FALSE)","v":false}]
[null,"实现韧性最大化的措施","责任机构","时间线"]
[]
[]
[null,"10.2 - 经验教训／学习循环",null,null,null,null,"10.2"]
[]
[null,"10.2.1 - 学习循环",null,null,null,null,"10.2.1"]
[null,"问题","注释"]
[]
[null,"测评尺度","请提供核查方法（解释说明及证据）"]
[null,null,null,null,null,{"$f":"IF(E50=1,TRUE,FALSE)","v":false}]
[null,null,null,null,null,{"$f":"IF(E50=2,TRUE,FALSE)","v":false}]
[null,null,null,null,null,{"$f":"IF(E50=3,TRUE,FALSE)","v":false}]
[null,null,null,null,null,{"$f":"IF(E50=4,TRUE,FALSE)","v":false}]
[null,null,null,null,null,{"$f":"IF(E50=5,TRUE,FALSE)","v":false}]
[null,null,null,null,null,{"$f":"IF(E50=6,TRUE,FALSE)","v":false}]
[null,"实现韧性最大化的措施","责任机构","时间线"]

{"sheet":"About","index":13,"n_rows":0,"n_cols":0,"rows_kept":0,"cut":false,"hidden":false,"merged":[]}